Workbook

Sheet ana girdiler
A1: Sarı Alanları Giriniz | I1: METRİK REÇETE PROGRAMI | K1: ='ana girdiler'!B3 -> English Bitter Ale | N1: www.birazbira.com | R1: Fermantasyon Hacmini Değiştirin
K2: HEDEFLENEN ÖLÇÜLER | N2: =IF(AND(Program!T23>0,Program!P51>0),"Partial Mash Reçetesi",IF(Program!T23>0,"Tam Tahıl Reçetesi",IF(Program!P51>0,"Malt Özü-Extract Reçetesi",0))) -> Tam Tahıl Reçetesi | R2: 12 | U2: sarı alana giriş yaparak hazırladığınız reçeteyi istediğiniz son hacimde oransal değiştirebilirsiniz
A3: Reçete İsmi | B3: English Bitter Ale | K3: Fermantasyon Hacmi | L3: =IF(R2=0,('ana girdiler'!B4),R2) -> 12 | M3: litre
A4: Fermantasyon Hacmi (litre) | B4: 12 | K4: Kaynatma Hacmi | L4: ='kaynatma suyu hesabı'!B30 -> 15.48 | M4: litre
A5: Mayşeleme Süresi (dak) | B5: 60 | K5: İlk yoğunluk (OG) | L5: =IFERROR(((Program!K23*'ana girdiler'!B8/100)/('ana girdiler'!L3/3.79)+((Program!J51)/('ana girdiler'!L3/3.79))+1000),0) -> 1059.532077
A6: Kaynatma Süresi (dak) | B6: 60 | K6: Son Yoğunluk (FG) | L6: =IFERROR((((L5-1000)*(100-(VLOOKUP(Program!B4,'maya tablosu'!A2:D300,4,0)))/100)+1000),0) -> 1014.883019
A7: Mayşeleme sıcaklığı (0C) | B7: 66 | K7: Tahmini Kaynatma Yoğunluğu | L7: =IFERROR(((Program!K23*'ana girdiler'!B8/100)/(L4/3.79)+(Program!J51/(L4/3.79))+1000),0) -> 1046.148897
A8: Mayşe Verimi % | B8: 75 | K8: ABV (Alkol Oranı) | L8: =(L5-L6)*0.131 -> 5.849026538 | M8: %
A9: Maya Seçimi | B9: Fermentis Safale S-04 | K9: Acılık | L9: =IFERROR(Program!I36,0) -> 43.71933333 | M9: IBU
A10: protein dinlenmesi (dak) | K10: Renk (EBC) | L10: =IFERROR((Program!N51+Program!P23),0) -> 16.09839895 | M10: EBC | N10: =L10 -> 16.09839895
K11: Fermantasyon Sıcaklığı | L11: =IFERROR((IF(Program!B5="ale","18-22","12-16")),0) -> 18-22 | M11: 0C
A12: =Program!A12 -> Malt Türü | B12: =Program!B12 -> kg | C12: =Program!C12 -> g | D12: =Program!D12 -> mayşede % malt oranı kontrolü | E12: =Program!F12 -> % mayşede malt yüzdesi | F12: =Program!G12 -> %mayşede max malt yüzdesi | G12: =Program!L12 -> % toplam ağırlıkta | K12: Tahmini Kalori Hesabı (50cc için) | L12: =Program!E55 -> 300.3754565 | M12: cal
K13: MALT MİKTARI | L13: Malt Miktarı | N13: Yüzde
A14: Maris Otter (Muntons) | C14: 2700 | D14: =IFERROR(Program!D13,0) -> yüzde uygun | E14: =IFERROR(Program!F13,0) -> 90 | F14: =Program!G13 -> 100 | G14: =IFERROR(Program!L13,0) -> 85.71428571 | K14: ='ana girdiler'!A14 -> Maris Otter (Muntons) | L14: =IF((Program!H13)=0,0,Program!H13) -> 2700 | M14: =IF(L14>0,"g"," ") -> g | N14: =IFERROR((Program!L13/100),0) -> 0.8571428571
A15: Munich II (weyermann) | C15: 300 | D15: =IFERROR(Program!D14,0) -> yüzde uygun | E15: =IFERROR(Program!F14,0) -> 10 | F15: =Program!G14 -> 10 | G15: =IFERROR(Program!L14,0) -> 9.523809524 | K15: ='ana girdiler'!A15 -> Munich II (weyermann) | L15: =IF((Program!H14)=0,0,Program!H14) -> 300 | M15: =IF(L15>0,"g"," ") -> g | N15: =IFERROR((Program!L14/100),0) -> 0.09523809524
D16: =IFERROR(Program!D15,0) -> 0 | E16: =IFERROR(Program!F15,0) -> 0 | F16: =Program!G15 -> 0 | G16: =IFERROR(Program!L15,0) -> 0 | K16: ='ana girdiler'!A16 -> 0 | L16: =IF((Program!H15)=0,0,Program!H15) -> 0 | M16: =IF(L16>0,"g"," ") ->  | N16: =IFERROR((Program!L15/100),0) -> 0
D17: =IFERROR(Program!D16,0) -> 0 | E17: =IFERROR(Program!F16,0) -> 0 | F17: =Program!G16 -> 0 | G17: =IFERROR(Program!L16,0) -> 0 | K17: ='ana girdiler'!A17 -> 0 | L17: =IF((Program!H16)=0,0,Program!H16) -> 0 | M17: =IF(L17>0,"g"," ") ->  | N17: =IFERROR((Program!L16/100),0) -> 0
D18: =IFERROR(Program!D17,0) -> 0 | E18: =IFERROR(Program!F17,0) -> 0 | F18: =Program!G17 -> 0 | G18: =IFERROR(Program!L17,0) -> 0 | K18: ='ana girdiler'!A18 -> 0 | L18: =IF((Program!H17)=0,0,Program!H17) -> 0 | N18: =IFERROR((Program!L17/100),0) -> 0
D19: =IFERROR(Program!D18,0) -> 0 | E19: =IFERROR(Program!F18,0) -> 0 | F19: =Program!G18 -> 0 | G19: =IFERROR(Program!L18,0) -> 0 | I19: TEMEL REÇETELER | K19: ='ana girdiler'!A19 -> 0 | L19: =IF((Program!H18)=0,0,Program!H18) -> 0 | N19: =IFERROR((Program!L18/100),0) -> 0
D20: =IFERROR(Program!D19,0) -> 0 | E20: =IFERROR(Program!F19,0) -> 0 | F20: =Program!G19 -> 0 | G20: =IFERROR(Program!L19,0) -> 0 | K20: ='ana girdiler'!A20 -> 0 | L20: =IF((Program!H19)=0,0,Program!H19) -> 0 | N20: =IFERROR((Program!L19/100),0) -> 0
D21: =IFERROR(Program!D20,0) -> 0 | E21: =IFERROR(Program!F20,0) -> 0 | F21: =Program!G20 -> 0 | G21: =IFERROR(Program!L20,0) -> 0 | K21: ='ana girdiler'!A21 -> 0 | L21: =IF((Program!H20)=0,0,Program!H20) -> 0 | N21: =IFERROR((Program!L20/100),0) -> 0
D22: =IFERROR(Program!D21,0) -> 0 | E22: =IFERROR(Program!F21,0) -> 0 | F22: =Program!G21 -> 0 | G22: =IFERROR(Program!L21,0) -> 0 | K22: ='ana girdiler'!A22 -> 0 | L22: =IF((Program!H21)=0,0,Program!H21) -> 0 | N22: =IFERROR((Program!L21/100),0) -> 0
D23: =IFERROR(Program!D22,0) -> 0 | E23: =IFERROR(Program!F22,0) -> 0 | F23: =Program!G22 -> 0 | G23: =IFERROR(Program!L22,0) -> 0 | K23: ='ana girdiler'!A23 -> 0 | L23: =IF((Program!H22)=0,0,Program!H22) -> 0 | N23: =IFERROR((Program!L22/100),0) -> 0
K25: ŞERBETÇİ OTU MİKTARI | L25: Şot Miktarı | N25: Alfa Asit% | O25: Kaynatma Süresi
D26: Diastatik Güç Kontrolü | K26: ='ana girdiler'!A41 -> Perle | L26: =IFERROR(Program!F26,0) -> 12 | M26: =IF(L26>0,"g"," ") -> g | N26: ='ana girdiler'!E41/100 -> 0.073 | O26: =IF(AND(C41=0,K26>0),"whirpool",'ana girdiler'!C41) -> 60 | P26: =IF(O26="whirpool","soğuk ek.",IF(O26>0,"dakika",0)) -> dakika
D27: Mayşe Diastatik Gücü | E27: =IF(N2="Tam Tahıl Reçetesi",(IFERROR((Program!R23/(Program!H23)),0)),0) -> 55.8 | K27: ='ana girdiler'!A42 -> Target | L27: =IFERROR(Program!F27,0) -> 20 | M27: g | N27: ='ana girdiler'!E42/100 -> 0.107 | O27: =IF(AND(C42=0,K27>0),"whirpool",'ana girdiler'!C42) -> 20 | P27: dakika
D28: Diastatik Güç kontrolü | E28: =IF(N2="Tam Tahıl Reçetesi",(IF(E27>40,"uygun","uygun değil")),0) -> uygun | K28: ='ana girdiler'!A43 -> Perle | L28: =IFERROR(Program!F28,0) -> 25 | M28: g | N28: ='ana girdiler'!E43/100 -> 0.073 | O28: =IF(AND(C43=0,K28>0),"whirpool",'ana girdiler'!C43) -> 5 | P28: dakika
D29: İkinci kontrol diastatik kontroldür malt % kontrolü maltları teker teker kontrol ederken bu kontrol Lintern derecesi ile kontrole eder. Diastatik sınır 40 alınmıştır. | K29: ='ana girdiler'!A44 -> Target | L29: =IFERROR(Program!F29,0) -> 25 | M29: g | N29: ='ana girdiler'!E44/100 -> 0.107 | O29: =IF(AND(C44=0,K29>0),"whirpool",'ana girdiler'!C44) -> whirpool | P29: soğuk ek.
K30: ='ana girdiler'!A45 -> Tettnang | L30: =IFERROR(Program!F30,0) -> 10 | M30: g | N30: ='ana girdiler'!E45/100 -> 0.042 | O30: =IF(AND(C45=0,K30>0),"whirpool",'ana girdiler'!C45) -> whirpool | P30: =IF(O30="whirpool","soğuk ek.",IF(O30>0,"dakika",0)) -> soğuk ek.
K31: ='ana girdiler'!A46 -> 0 | L31: =IFERROR(Program!F31,0) -> 0 | N31: ='ana girdiler'!E46/100 -> 0 | O31: =IF(AND(C46=0,K31>0),"whirpool",'ana girdiler'!C46) -> 0 | P31: =IF(O31="whirpool","soğuk ek.",IF(O31>0,"dakika",0)) -> 0
K32: ='ana girdiler'!A47 -> 0 | L32: =IFERROR(Program!F32,0) -> 0 | N32: ='ana girdiler'!E47/100 -> 0 | O32: =IF(AND(C47=0,K32>0),"whirpool",'ana girdiler'!C47) -> 0 | P32: 0
D33: Mayşe Oranı (toplam malt / ilk su hacmi) | K33: ='ana girdiler'!A48 -> 0 | L33: =IFERROR(Program!F33,0) -> 0 | N33: ='ana girdiler'!E48/100 -> 0 | O33: =IF(AND(C48=0,K33>0),"whirpool",'ana girdiler'!C48) -> 0 | P33: 0
D34: =IF(N2="Partial Mash Reçetesi",0,IFERROR(((Program!H23/1000)/'kaynatma suyu hesabı'!B26),0)) -> 0.2 | E34: Genelde 1/3 , 1/4 veya 1/5 olmalı | K34: ='ana girdiler'!A49 -> 0 | L34: =IFERROR(Program!F34,0) -> 0 | N34: ='ana girdiler'!E49/100 -> 0 | O34: =IF(AND(C49=0,K34>0),"whirpool",'ana girdiler'!C49) -> 0 | P34: 0
K35: ='ana girdiler'!A50 -> 0 | L35: =IFERROR(Program!F35,0) -> 0 | N35: ='ana girdiler'!E50/100 -> 0 | O35: =IF(AND(C50=0,K35>0),"whirpool",'ana girdiler'!C50) -> 0 | P35: 0
K37: MALT DIŞI KATKILAR- MALT ÖZLERİ | L37: Katkı Miktarı | N37: Yüzde
K38: ='ana girdiler'!A61 -> Akçağaç Şurubu | L38: =Program!G41 -> 150 | M38: =IF(L38>0,"g"," ") -> g | N38: =IFERROR((Program!E41/100),0) -> 0.04761904762
K39: ='ana girdiler'!A62 -> 0 | L39: =Program!G42 -> 0 | N39: =IFERROR((Program!E42/100),0) -> 0
A40: =Program!A25 -> Şerbetçi Otu Türü | B40: =Program!B25 -> g | C40: =Program!C25 -> dak. | D40: =Program!D25 -> Önerilen Kullanım şekli | E40: =Program!E25 -> AA % | K40: ='ana girdiler'!A63 -> 0 | L40: =Program!G43 -> 0 | N40: =IFERROR((Program!E43/100),0) -> 0
A41: Perle | B41: 12 | C41: 60 | D41: =IF(A41=0,0,(VLOOKUP(A41,'serbetçi otu tablosu'!A$2:D$30,4,0))) -> Acılık | E41: =IF(A41=0,0,VLOOKUP(A41,'serbetçi otu tablosu'!A$1:D$30,3,0)) -> 7.3 | K41: ='ana girdiler'!A64 -> 0 | L41: =Program!G44 -> 0 | N41: =IFERROR((Program!E44/100),0) -> 0
A42: Target | B42: 20 | C42: 20 | D42: =IF(A42=0,0,(VLOOKUP(A42,'serbetçi otu tablosu'!A$2:D$30,4,0))) -> Acılık | E42: =IF(A42=0,0,VLOOKUP(A42,'serbetçi otu tablosu'!A$1:D$30,3,0)) -> 10.7 | K42: ='ana girdiler'!A65 -> 0 | L42: =Program!G45 -> 0 | N42: =IFERROR((Program!E45/100),0) -> 0
A43: Perle | B43: 25 | C43: 5 | D43: =IF(A43=0,0,(VLOOKUP(A43,'serbetçi otu tablosu'!A$2:D$30,4,0))) -> Acılık | E43: =IF(A43=0,0,VLOOKUP(A43,'serbetçi otu tablosu'!A$1:D$30,3,0)) -> 7.3 | K43: ='ana girdiler'!A66 -> 0 | L43: =Program!G46 -> 0 | N43: =IFERROR((Program!E46/100),0) -> 0
A44: Target | B44: 25 | C44: 0 | D44: =IF(A44=0,0,(VLOOKUP(A44,'serbetçi otu tablosu'!A$2:D$30,4,0))) -> Acılık | E44: =IF(A44=0,0,VLOOKUP(A44,'serbetçi otu tablosu'!A$1:D$30,3,0)) -> 10.7 | K44: ='ana girdiler'!A67 -> 0 | L44: =Program!G47 -> 0 | N44: =IFERROR((Program!E47/100),0) -> 0
A45: Tettnang | B45: 10 | C45: 0 | D45: =IF(A45=0,0,(VLOOKUP(A45,'serbetçi otu tablosu'!A$2:D$30,4,0))) -> Aroma | E45: =IF(A45=0,0,VLOOKUP(A45,'serbetçi otu tablosu'!A$1:D$30,3,0)) -> 4.2 | K45: ='ana girdiler'!A68 -> 0 | L45: =Program!G48 -> 0 | N45: =IFERROR((Program!E48/100),0) -> 0
D46: =IF(A46=0,0,(VLOOKUP(A46,'serbetçi otu tablosu'!A$2:D$30,4,0))) -> 0 | E46: =IF(A46=0,0,VLOOKUP(A46,'serbetçi otu tablosu'!A$1:D$30,3,0)) -> 0 | K46: ='ana girdiler'!A69 -> 0 | L46: =Program!G49 -> 0 | N46: =IFERROR((Program!E49/100),0) -> 0
D47: =IF(A47=0,0,(VLOOKUP(A47,'serbetçi otu tablosu'!A$2:D$30,4,0))) -> 0 | E47: =IF(A47=0,0,VLOOKUP(A47,'serbetçi otu tablosu'!A$1:D$30,3,0)) -> 0 | K47: ='ana girdiler'!A70 -> 0 | L47: =Program!G50 -> 0 | M47: =IF(L47>0,"g"," ") ->  | N47: =IFERROR((Program!E50/100),0) -> 0
D48: =IF(A48=0,0,(VLOOKUP(A48,'serbetçi otu tablosu'!A$2:D$30,4,0))) -> 0 | E48: =IF(A48=0,0,VLOOKUP(A48,'serbetçi otu tablosu'!A$1:D$30,3,0)) -> 0 | K48: MAYA | L48: Kuru Maya Miktarı
D49: =IF(A49=0,0,(VLOOKUP(A49,'serbetçi otu tablosu'!A$2:D$30,4,0))) -> 0 | E49: =IF(A49=0,0,VLOOKUP(A49,'serbetçi otu tablosu'!A$1:D$30,3,0)) -> 0 | K49: =Program!B4 -> Fermentis Safale S-04 | L49: =IFERROR((IF(Program!B5="ale",(750000*L3*((L5-1000)/4)/20000000),(IF(Program!B5="lager",(1500000*L3*((L5-1000)/4)/20000000),0)))),0) -> 6.697358631 | M49: g
D50: =IF(A50=0,0,(VLOOKUP(A50,'serbetçi otu tablosu'!A$2:D$30,4,0))) -> 0 | E50: =IF(A50=0,0,VLOOKUP(A50,'serbetçi otu tablosu'!A$1:D$30,3,0)) -> 0
K51: ADIMLAR | L51: litre | M51: derece 0C | N51: dakika | O51: =IF(L52>0,"Çift Kademeli","Tek Kademeli") -> Tek Kademeli
K52: ='kaynatma suyu hesabı'!A26 -> Protein Dinlenmesi | L52: =IF($B$10=0,0,'kaynatma suyu hesabı'!B26) -> 0 | M52: =IF($B$10=0,0,("44-59")) -> 0 | N52: =B10 -> 0
K53: ='kaynatma suyu hesabı'!A27 -> Mayşeleme | L53: =IF($B$5=0,0,'kaynatma suyu hesabı'!B27) -> 15 | M53: =IF($B$5=0,0,(B7)) -> 66 | N53: ='ana girdiler'!B5 -> 60
K54: ='kaynatma suyu hesabı'!A28 -> Mayşelemeden sonraki hacim(mash-out) | L54: =IF($B$5=0,0,'kaynatma suyu hesabı'!B28) -> 11.5 | M54: =IF($B$5=0,0,75) -> 75 | N54: =IF($B$5=0,0,10) -> 10
K55: ='kaynatma suyu hesabı'!A29 -> Yağmurlama (Sparge) | L55: =IF($B$5=0,0,'kaynatma suyu hesabı'!B29) -> 3.83 | M55: =IF($B$5=0,0,75) -> 75 | N55: =IF($B$5=0,0,"-") -> -
K56: ='kaynatma suyu hesabı'!A30 -> Tahmini kaynatma hacmi | L56: ='kaynatma suyu hesabı'!B30 -> 15.48 | M56: >100 | N56: ='ana girdiler'!B6 -> 60
K57: ='kaynatma suyu hesabı'!A31 -> Toplam kullanılacak su miktarı | L57: ='kaynatma suyu hesabı'!B31 -> 18.83
K58: ='kaynatma suyu hesabı'!A32 -> Minimum kaynatma kazanı hacmi | L58: ='kaynatma suyu hesabı'!B32 -> 18
A60: =Program!A40 -> Malt Dışı Katkılar ve Malt Özleri | B60: =Program!B40 -> kg | C60: =Program!C40 -> g | D60: =Program!D40 -> toplam %şeker katkı kontrolü | E60: =Program!E40 -> % toplam ağırıkta | F60: =Program!F40 -> %maks şeker ve katkı | L60: Irish Moss Miktarı
A61: Akçağaç Şurubu | C61: 150 | D61: =IFERROR(Program!D41,0) -> yüzde uygun | E61: =IFERROR(Program!E41,0) -> 4.761904762 | F61: =Program!F41 -> 10 | K61: Irish Moss | L61: =0.2*L56 -> 3.096 | M61: g
D62: =IFERROR(Program!D42,0) -> 0 | E62: =IFERROR(Program!E42,0) -> 0 | F62: =Program!F42 -> 0
D63: =IFERROR(Program!D43,0) -> 0 | E63: =IFERROR(Program!E43,0) -> 0 | F63: =Program!F43 -> 0 | K63: mayşeleme su kaybı saatte 0.5 litre olarak kabul edilmiştir
D64: =IFERROR(Program!D44,0) -> 0 | E64: =IFERROR(Program!E44,0) -> 0 | F64: =Program!F44 -> 0 | K64: kaynatma su kaybı saatte 3 litre olarak kabul edilmiştir
D65: =IFERROR(Program!D45,0) -> 0 | E65: =IFERROR(Program!E45,0) -> 0 | F65: =Program!F45 -> 0 | K65: Tahmini ölü yer ve tahmini çökelme kaybı 0 olarak kabul edilmiştir.
D66: =IFERROR(Program!D46,0) -> 0 | E66: =IFERROR(Program!E46,0) -> 0 | F66: =Program!F46 -> 0
D67: =IFERROR(Program!D47,0) -> 0 | E67: =IFERROR(Program!E47,0) -> 0 | F67: =Program!F47 -> 0 | K67: yukarıdaki kabuller tek kademeli normal BIAB süreci içindir
D68: =IFERROR(Program!D48,0) -> 0 | E68: =IFERROR(Program!E48,0) -> 0 | F68: =Program!F48 -> 0 | K68: aksi halde kaynatma suyu hesabını değiştirin
D69: =IFERROR(Program!D49,0) -> 0 | E69: =IFERROR(Program!E49,0) -> 0 | F69: =Program!F49 -> 0
D70: =IFERROR(Program!D50,0) -> 0 | E70: =IFERROR(Program!E50,0) -> 0 | F70: =Program!F50 -> 0
K71: Fermantasyon Kabı Hacmi | L71: =(L3/3)*4 -> 16 | M71: litre
D73: DME cinsinden malt özü oranı (toplam DME/ils su hacmi) | K73: Genç Bira Hacmi | L73: =L3*0.85 -> 10.2 | M73: litre
D74: =IFERROR(((Program!Q51+0.84*Program!R51)/1000)/'kaynatma suyu hesabı'!B26,0) -> 0 | E74: Genelde 1/4, 1/6 veya 1/8 olmalı | K74: (ikinci fermantasyon yapılırsa biranın en az
K75: 0,15 oranında hacmi dökülecektir)
K77: KİŞİSEL NOTLAR
A82: Kaynatma Suyu Değerleri | B82: miktar | C82: birim
A83: 44-59 derecede protein rest | B83: 0.3 | C83: litre/s | D83: protein dinlenmesi bölümü opsiyoneldir
A84: Ortalama 66 derecede mayşeleme | B84: 0.5 | C84: litre/s | D84: standart olarak ortalama 660C'de 0,5 litre girilmiştir.
A85: Kaynatma Süresi | B85: 3 | C85: litre/s | D85: standart olarak ortalama 3 litre girilmiştir.
A86: Tahmini Ölü yer kaybı | B86: 0 | C86: litre | D86: bu alan ekipmanın dibinde kalan sıvıdır bunu elle girmeniz gerekir,mayşelemeden sonra sıvının hepsini kullanıyorsanız 0 kalabilir.
A87: Tahmini çökelme kaybı | B87: 0 | C87: litre | D87: özellikle mash-tun tekniğinde dipte çökelen maddelerdir bunu varsa elle girmeniz gerekir,BIAB yönteminde 0 olabilir.
A94: TABLO AYARLARI

Sheet amerikan (hidden)
A1: Sarı Alanları Giriniz | I1: AMERİKAN REÇETESİ | K1: =amerikan!B3 -> 0 | N1: www.birazbira.com | R1: Fermantasyon Hacmini Değiştirin
K2: HEDEFLENEN ÖLÇÜLER | N2: =IF(AND(Program!T23>0,Program!P51>0),"Partial Mash Reçetesi",IF(Program!T23>0,"Tam Tahıl Reçetesi",IF(Program!P51>0,"Malt Özü-Extract Reçetesi",0))) -> Tam Tahıl Reçetesi | R2: 0 | U2: sarı alana giriş yaparak hazırladığınız reçeteyi istediğiniz son hacimde oransal değiştirebilirsiniz
A3: Reçete İsmi | K3: Fermantasyon Hacmi | L3: =IF(R2=0,(amerikan!B4*Program!C60),R2) -> 0 | M3: litre
A4: Fermantasyon Hacmi (us gallon) | K4: Kaynatma Hacmi | L4: ='kaynatma suyu hesabı'!B30 -> 15.48 | M4: litre
A5: Mayşeleme Süresi (dak) | K5: İlk yoğunluk (OG) | L5: =IFERROR(((Program!K23*amerikan!B8/100)/(amerikan!L3/3.79)+((Program!J51)/(amerikan!L3/3.79))+1000),0) -> 0
A6: Kaynatma Süresi (dak) | K6: Son Yoğunluk (FG) | L6: =IFERROR((((L5-1000)*(100-(VLOOKUP(Program!B4,'maya tablosu'!A2:D300,4,0)))/100)+1000),0) -> 750
A7: Mayşeleme sıcaklığı (fahreneit) | K7: Tahmini Kaynatma Yoğunluğu | L7: =IFERROR(((Program!K23*amerikan!B8/100)/(L4/3.79)+(Program!J51/(L4/3.79))+1000),0) -> 1002.428889
A8: Mayşe Verimi % | K8: ABV (Alkol Oranı) | L8: =(L5-L6)*0.131 -> -98.25 | M8: %
A9: Maya Seçimi | K9: Acılık | L9: =IFERROR(Program!I36,0) -> 43.71933333 | M9: IBU
A10: protein dinlenmesi (dak) | K10: Renk (EBC) | L10: =IFERROR((Program!N51+Program!P23),0) -> 16.09839895 | M10: EBC | N10: =L10 -> 16.09839895
K11: Fermantasyon Sıcaklığı | L11: =IFERROR((IF(Program!B5="ale","18-22","12-16")),0) -> 18-22 | M11: 0C
A12: =Program!A12 -> Malt Türü | B12: libre | C12: oz | D12: =Program!D12 -> mayşede % malt oranı kontrolü | E12: =Program!F12 -> % mayşede malt yüzdesi | F12: =Program!G12 -> %mayşede max malt yüzdesi | G12: =Program!L12 -> % toplam ağırlıkta | K12: Tahmini Kalori Hesabı (50cc için) | L12: =Program!E55 -> 300.3754565 | M12: cal
K13: MALT MİKTARI | L13: Malt Miktarı | N13: Yüzde
D14: =IFERROR(Program!D13,0) -> yüzde uygun | E14: =IFERROR(Program!F13,0) -> 90 | F14: =Program!G13 -> 100 | G14: =IFERROR(Program!L13,0) -> 85.71428571 | K14: =amerikan!A14 -> 0 | L14: =IF((Program!H13)=0,0,Program!H13) -> 2700 | M14: =IF(L14>0,"g"," ") -> g | N14: =IFERROR((Program!L13/100),0) -> 0.8571428571
D15: =IFERROR(Program!D14,0) -> yüzde uygun | E15: =IFERROR(Program!F14,0) -> 10 | F15: =Program!G14 -> 10 | G15: =IFERROR(Program!L14,0) -> 9.523809524 | K15: =amerikan!A15 -> 0 | L15: =IF((Program!H14)=0,0,Program!H14) -> 300 | M15: =IF(L15>0,"g"," ") -> g | N15: =IFERROR((Program!L14/100),0) -> 0.09523809524
D16: =IFERROR(Program!D15,0) -> 0 | E16: =IFERROR(Program!F15,0) -> 0 | F16: =Program!G15 -> 0 | G16: =IFERROR(Program!L15,0) -> 0 | K16: =amerikan!A16 -> 0 | L16: =IF((Program!H15)=0,0,Program!H15) -> 0 | M16: =IF(L16>0,"g"," ") ->  | N16: =IFERROR((Program!L15/100),0) -> 0
D17: =IFERROR(Program!D16,0) -> 0 | E17: =IFERROR(Program!F16,0) -> 0 | F17: =Program!G16 -> 0 | G17: =IFERROR(Program!L16,0) -> 0 | K17: =amerikan!A17 -> 0 | L17: =IF((Program!H16)=0,0,Program!H16) -> 0 | M17: =IF(L17>0,"g"," ") ->  | N17: =IFERROR((Program!L16/100),0) -> 0
D18: =IFERROR(Program!D17,0) -> 0 | E18: =IFERROR(Program!F17,0) -> 0 | F18: =Program!G17 -> 0 | G18: =IFERROR(Program!L17,0) -> 0 | K18: =amerikan!A18 -> 0 | L18: =IF((Program!H17)=0,0,Program!H17) -> 0 | N18: =IFERROR((Program!L17/100),0) -> 0
D19: =IFERROR(Program!D18,0) -> 0 | E19: =IFERROR(Program!F18,0) -> 0 | F19: =Program!G18 -> 0 | G19: =IFERROR(Program!L18,0) -> 0 | K19: =amerikan!A19 -> 0 | L19: =IF((Program!H18)=0,0,Program!H18) -> 0 | N19: =IFERROR((Program!L18/100),0) -> 0
D20: =IFERROR(Program!D19,0) -> 0 | E20: =IFERROR(Program!F19,0) -> 0 | F20: =Program!G19 -> 0 | G20: =IFERROR(Program!L19,0) -> 0 | K20: =amerikan!A20 -> 0 | L20: =IF((Program!H19)=0,0,Program!H19) -> 0 | N20: =IFERROR((Program!L19/100),0) -> 0
D21: =IFERROR(Program!D20,0) -> 0 | E21: =IFERROR(Program!F20,0) -> 0 | F21: =Program!G20 -> 0 | G21: =IFERROR(Program!L20,0) -> 0 | K21: =amerikan!A21 -> 0 | L21: =IF((Program!H20)=0,0,Program!H20) -> 0 | N21: =IFERROR((Program!L20/100),0) -> 0
D22: =IFERROR(Program!D21,0) -> 0 | E22: =IFERROR(Program!F21,0) -> 0 | F22: =Program!G21 -> 0 | G22: =IFERROR(Program!L21,0) -> 0 | K22: =amerikan!A22 -> 0 | L22: =IF((Program!H21)=0,0,Program!H21) -> 0 | N22: =IFERROR((Program!L21/100),0) -> 0
D23: =IFERROR(Program!D22,0) -> 0 | E23: =IFERROR(Program!F22,0) -> 0 | F23: =Program!G22 -> 0 | G23: =IFERROR(Program!L22,0) -> 0 | K23: =amerikan!A23 -> 0 | L23: =IF((Program!H22)=0,0,Program!H22) -> 0 | N23: =IFERROR((Program!L22/100),0) -> 0
K25: ŞERBETÇİ OTU MİKTARI | L25: Şot Miktarı | N25: Alfa Asit% | O25: Kaynatma Süresi
D26: Diastatik Güç Kontrolü | K26: =amerikan!A41 -> 0 | L26: =Program!F26 -> 12 | M26: =IF(L26>0,"g"," ") -> g | N26: =amerikan!E41/100 -> 0 | O26: =IF(AND(C41=0,K26>0),"whirpool",amerikan!C41) -> 0 | P26: =IF(O26="whirpool","soğuk ek.",IF(O26>0,"dakika",0)) -> 0
D27: Mayşe Diastatik Gücü | E27: =IF(N2="Tam Tahıl Reçetesi",(IFERROR((Program!R23/(Program!H23)),0)),0) -> 55.8 | K27: =amerikan!A42 -> 0 | L27: =Program!F27 -> 20 | M27: g | N27: =amerikan!E42/100 -> 0 | O27: =IF(AND(C42=0,K27>0),"whirpool",amerikan!C42) -> 0 | P27: =IF(O27="whirpool","soğuk ek.",IF(O27>0,"dakika",0)) -> 0
D28: Diastatik Güç kontrolü | E28: =IF(N2="Tam Tahıl Reçetesi",(IF(E27>40,"uygun","uygun değil")),0) -> uygun | K28: =amerikan!A43 -> 0 | L28: =Program!F28 -> 25 | M28: g | N28: =amerikan!E43/100 -> 0 | O28: =IF(AND(C43=0,K28>0),"whirpool",amerikan!C43) -> 0 | P28: =IF(O28="whirpool","soğuk ek.",IF(O28>0,"dakika",0)) -> 0
D29: İkinci kontrol diastatik kontroldür malt % kontrolü maltları teker teker kontrol ederken bu kontrol Lintern derecesi ile kontrole eder. Diastatik sınır 40 alınmıştır. | K29: =amerikan!A44 -> 0 | L29: =Program!F29 -> 25 | M29: g | N29: =amerikan!E44/100 -> 0 | O29: =IF(AND(C44=0,K29>0),"whirpool",amerikan!C44) -> 0 | P29: 0
K30: =amerikan!A45 -> 0 | L30: =Program!F30 -> 10 | M30: g | N30: =amerikan!E45/100 -> 0 | O30: =IF(AND(C45=0,K30>0),"whirpool",amerikan!C45) -> 0 | P30: 0
K31: =amerikan!A46 -> 0 | L31: =Program!F31 -> 0 | N31: =amerikan!E46/100 -> 0 | O31: =IF(AND(C46=0,K31>0),"whirpool",amerikan!C46) -> 0 | P31: 0
K32: =amerikan!A47 -> 0 | L32: =Program!F32 -> 0 | N32: =amerikan!E47/100 -> 0 | O32: =IF(AND(C47=0,K32>0),"whirpool",amerikan!C47) -> 0 | P32: 0
D33: Mayşe Oranı (toplam malt / ilk su hacmi) | K33: =amerikan!A48 -> 0 | L33: =Program!F33 -> 0 | N33: =amerikan!E48/100 -> 0 | O33: =IF(AND(C48=0,K33>0),"whirpool",amerikan!C48) -> 0 | P33: 0
D34: =IF(N2="Partial Mash Reçetesi",0,IFERROR(((Program!H23/1000)/'kaynatma suyu hesabı'!B26),0)) -> 0.2 | E34: Genelde 1/3 , 1/4 veya 1/5 olmalı | K34: =amerikan!A49 -> 0 | L34: =Program!F34 -> 0 | N34: =amerikan!E49/100 -> 0 | O34: =IF(AND(C49=0,K34>0),"whirpool",amerikan!C49) -> 0 | P34: 0
K35: =amerikan!A50 -> 0 | L35: =Program!F35 -> 0 | N35: =amerikan!E50/100 -> 0 | O35: =IF(AND(C50=0,K35>0),"whirpool",amerikan!C50) -> 0 | P35: 0
K37: MALT DIŞI KATKILAR- MALT ÖZLERİ | L37: Katkı Miktarı | N37: Yüzde
K38: =amerikan!A61 -> 0 | L38: =Program!G41 -> 150 | M38: =IF(L38>0,"g"," ") -> g | N38: =IFERROR((Program!E41/100),0) -> 0.04761904762
K39: =amerikan!A62 -> 0 | L39: =Program!G42 -> 0 | N39: =IFERROR((Program!E42/100),0) -> 0
A40: =Program!A25 -> Şerbetçi Otu Türü | B40: oz | C40: =Program!C25 -> dak. | D40: =Program!D25 -> Önerilen Kullanım şekli | E40: =Program!E25 -> AA % | K40: =amerikan!A63 -> 0 | L40: =Program!G43 -> 0 | N40: =IFERROR((Program!E43/100),0) -> 0
D41: =IF(A41=0,0,(VLOOKUP(A41,'serbetçi otu tablosu'!A$2:D$30,4,0))) -> 0 | E41: =IF(A41=0,0,VLOOKUP(A41,'serbetçi otu tablosu'!A$1:D$30,3,0)) -> 0 | K41: =amerikan!A64 -> 0 | L41: =Program!G44 -> 0 | N41: =IFERROR((Program!E44/100),0) -> 0
D42: =IF(A42=0,0,(VLOOKUP(A42,'serbetçi otu tablosu'!A$2:D$30,4,0))) -> 0 | E42: =IF(A42=0,0,VLOOKUP(A42,'serbetçi otu tablosu'!A$1:D$30,3,0)) -> 0 | K42: =amerikan!A65 -> 0 | L42: =Program!G45 -> 0 | N42: =IFERROR((Program!E45/100),0) -> 0
D43: =IF(A43=0,0,(VLOOKUP(A43,'serbetçi otu tablosu'!A$2:D$30,4,0))) -> 0 | E43: =IF(A43=0,0,VLOOKUP(A43,'serbetçi otu tablosu'!A$1:D$30,3,0)) -> 0 | K43: =amerikan!A66 -> 0 | L43: =Program!G46 -> 0 | N43: =IFERROR((Program!E46/100),0) -> 0
D44: =IF(A44=0,0,(VLOOKUP(A44,'serbetçi otu tablosu'!A$2:D$30,4,0))) -> 0 | E44: =IF(A44=0,0,VLOOKUP(A44,'serbetçi otu tablosu'!A$1:D$30,3,0)) -> 0 | K44: =amerikan!A67 -> 0 | L44: =Program!G47 -> 0 | N44: =IFERROR((Program!E47/100),0) -> 0
D45: =IF(A45=0,0,(VLOOKUP(A45,'serbetçi otu tablosu'!A$2:D$30,4,0))) -> 0 | E45: =IF(A45=0,0,VLOOKUP(A45,'serbetçi otu tablosu'!A$1:D$30,3,0)) -> 0 | K45: =amerikan!A68 -> 0 | L45: =Program!G48 -> 0 | N45: =IFERROR((Program!E48/100),0) -> 0
D46: =IF(A46=0,0,(VLOOKUP(A46,'serbetçi otu tablosu'!A$2:D$30,4,0))) -> 0 | E46: =IF(A46=0,0,VLOOKUP(A46,'serbetçi otu tablosu'!A$1:D$30,3,0)) -> 0 | K46: =amerikan!A69 -> 0 | L46: =Program!G49 -> 0 | N46: =IFERROR((Program!E49/100),0) -> 0
D47: =IF(A47=0,0,(VLOOKUP(A47,'serbetçi otu tablosu'!A$2:D$30,4,0))) -> 0 | E47: =IF(A47=0,0,VLOOKUP(A47,'serbetçi otu tablosu'!A$1:D$30,3,0)) -> 0 | K47: =amerikan!A70 -> 0 | L47: =Program!G50 -> 0 | N47: =IFERROR((Program!E50/100),0) -> 0
D48: =IF(A48=0,0,(VLOOKUP(A48,'serbetçi otu tablosu'!A$2:D$30,4,0))) -> 0 | E48: =IF(A48=0,0,VLOOKUP(A48,'serbetçi otu tablosu'!A$1:D$30,3,0)) -> 0 | K48: MAYA | L48: Kuru Maya Miktarı
D49: =IF(A49=0,0,(VLOOKUP(A49,'serbetçi otu tablosu'!A$2:D$30,4,0))) -> 0 | E49: =IF(A49=0,0,VLOOKUP(A49,'serbetçi otu tablosu'!A$1:D$30,3,0)) -> 0 | K49: =Program!B4 -> Fermentis Safale S-04 | L49: =IFERROR((IF(Program!B5="ale",(750000*L3*((L5-1000)/4)/20000000),(IF(Program!B5="lager",(1500000*L3*((L5-1000)/4)/20000000),0)))),0) -> 0 | M49: g
D50: =IF(A50=0,0,(VLOOKUP(A50,'serbetçi otu tablosu'!A$2:D$30,4,0))) -> 0 | E50: =IF(A50=0,0,VLOOKUP(A50,'serbetçi otu tablosu'!A$1:D$30,3,0)) -> 0
K51: ADIMLAR | L51: litre | M51: derece 0C | N51: dakika | O51: =IF(L52>0,"Çift Kademeli","Tek Kademeli") -> Tek Kademeli
K52: ='kaynatma suyu hesabı'!A26 -> Protein Dinlenmesi | L52: =IF($B$10=0,0,'kaynatma suyu hesabı'!B26) -> 0 | M52: =IF($B$10=0,0,("44-59")) -> 0 | N52: =B10 -> 0
K53: ='kaynatma suyu hesabı'!A27 -> Mayşeleme | L53: =IF($B$5=0,0,'kaynatma suyu hesabı'!B27) -> 0 | M53: =IF($B$5=0,0,(((amerikan!B7-32)*5)/9 )) -> 0 | N53: =amerikan!B5 -> 0
K54: ='kaynatma suyu hesabı'!A28 -> Mayşelemeden sonraki hacim(mash-out) | L54: =IF($B$5=0,0,'kaynatma suyu hesabı'!B28) -> 0 | M54: =IF($B$5=0,0,75) -> 0 | N54: =IF($B$5=0,0,10) -> 0
K55: ='kaynatma suyu hesabı'!A29 -> Yağmurlama (Sparge) | L55: =IF($B$5=0,0,'kaynatma suyu hesabı'!B29) -> 0 | M55: =IF($B$5=0,0,75) -> 0 | N55: =IF($B$5=0,0,"-") -> 0
K56: ='kaynatma suyu hesabı'!A30 -> Tahmini kaynatma hacmi | L56: ='kaynatma suyu hesabı'!B30 -> 15.48 | M56: >100 | N56: =amerikan!B6 -> 0
K57: ='kaynatma suyu hesabı'!A31 -> Toplam kullanılacak su miktarı | L57: ='kaynatma suyu hesabı'!B31 -> 18.83
K58: ='kaynatma suyu hesabı'!A32 -> Minimum kaynatma kazanı hacmi | L58: ='kaynatma suyu hesabı'!B32 -> 18
A60: =Program!A40 -> Malt Dışı Katkılar ve Malt Özleri | B60: libre | C60: oz | D60: =Program!D40 -> toplam %şeker katkı kontrolü | E60: =Program!E40 -> % toplam ağırıkta | F60: =Program!F40 -> %maks şeker ve katkı | L60: Irish Moss Miktarı
D61: =IFERROR(Program!D41,0) -> yüzde uygun | E61: =IFERROR(Program!E41,0) -> 4.761904762 | F61: =Program!F41 -> 10 | K61: Irish Moss | L61: =(0.2*L56) -> 3.096 | M61: g
D62: =IFERROR(Program!D42,0) -> 0 | E62: =IFERROR(Program!E42,0) -> 0 | F62: =Program!F42 -> 0
D63: =IFERROR(Program!D43,0) -> 0 | E63: =IFERROR(Program!E43,0) -> 0 | F63: =Program!F43 -> 0 | K63: mayşeleme su kaybı saatte 0.5 litre olarak kabul edilmiştir
D64: =IFERROR(Program!D44,0) -> 0 | E64: =IFERROR(Program!E44,0) -> 0 | F64: =Program!F44 -> 0 | K64: kaynatma su kaybı saatte 3 litre olarak kabul edilmiştir
D65: =IFERROR(Program!D45,0) -> 0 | E65: =IFERROR(Program!E45,0) -> 0 | F65: =Program!F45 -> 0 | K65: Tahmini ölü yer ve tahmini çökelme kaybı 0 olarak kabul edilmiştir.
D66: =IFERROR(Program!D46,0) -> 0 | E66: =IFERROR(Program!E46,0) -> 0 | F66: =Program!F46 -> 0
D67: =IFERROR(Program!D47,0) -> 0 | E67: =IFERROR(Program!E47,0) -> 0 | F67: =Program!F47 -> 0 | K67: yukarıdaki kabuller tek kademeli normal BIAB süreci içindir
D68: =IFERROR(Program!D48,0) -> 0 | E68: =IFERROR(Program!E48,0) -> 0 | F68: =Program!F48 -> 0 | K68: aksi halde kaynatma suyu hesabını değiştirin
D69: =IFERROR(Program!D49,0) -> 0 | E69: =IFERROR(Program!E49,0) -> 0 | F69: =Program!F49 -> 0
D70: =IFERROR(Program!D50,0) -> 0 | E70: =IFERROR(Program!E50,0) -> 0 | F70: =Program!F50 -> 0
K71: Fermantasyon Kabı Hacmi | L71: =(L3/3)*4 -> 0 | M71: litre
D73: DME cinsinden malt özü oranı (toplam DME/ils su hacmi) | K73: Genç Bira Hacmi | L73: =L3*0.85 -> 0 | M73: litre
D74: =IFERROR(((Program!Q51+0.84*Program!R51)/1000)/'kaynatma suyu hesabı'!B26,0) -> 0 | E74: Genelde 1/4, 1/6 veya 1/8 olmalı | K74: (ikinci fermantasyon yapılırsa biranın en az
K75: 0,15 oranında hacmi dökülecektir)
K77: KİŞİSEL NOTLAR
A82: Kaynatma Suyu Değerleri | B82: miktar | C82: birim
A83: 44-59 derecede protein rest | B83: 0.3 | C83: litre/s | D83: protein dinlenmesi bölümü opsiyoneldir
A84: Ortalama 66 derecede mayşeleme | B84: 0.5 | C84: litre/s | D84: standart olarak ortalama 660C'de 0,5 litre girilmiştir.
A85: Kaynatma Süresi | B85: 3 | C85: litre/s | D85: standart olarak ortalama 3 litre girilmiştir.
A86: Tahmini Ölü yer kaybı | B86: 0 | C86: litre | D86: bu alan ekipmanın dibinde kalan sıvıdır bunu elle girmeniz gerekir,mayşelemeden sonra sıvının hepsini kullanıyorsanız 0 kalabilir.
A87: Tahmini çökelme kaybı | B87: 0 | C87: litre | D87: özellikle mash-tun tekniğinde dipte çökelen maddelerdir bunu varsa elle girmeniz gerekir,BIAB yönteminde 0 olabilir.

Sheet Program (hidden)
A1: Lütfen Sarı Alanları Giriniz
A4: Maya Seçimi | B4: =IF(('ana girdiler'!B9)=0,(amerikan!B9),('ana girdiler'!B9)) -> Fermentis Safale S-04
A5: Maya Tipi | B5: =VLOOKUP(B4,'maya tablosu'!A$2:D$299,2,0) -> ale
A6: orjinal tasarım / modifiye tasarım | B6: =B8/B7 -> 1
A7: Fermantasyon Hacmi | B7: =IF(('ana girdiler'!B4)=0,(amerikan!B4*C60),('ana girdiler'!B4)) -> 12
A8: Modifiye Fermantasyon Hacmi | B8: =IF(('ana girdiler'!R2=0),(amerikan!R2),('ana girdiler'!R2)) -> 12
A9: Kaynatma Yoğunluğu | B9: =IF(('ana girdiler'!L3)=0,(amerikan!L7),('ana girdiler'!L7)) -> 1046.148897
A12: Malt Türü | B12: kg | C12: g | D12: mayşede % malt oranı kontrolü | E12: Cinsi | F12: % mayşede malt yüzdesi | G12: %mayşede max malt yüzdesi | H12: Toplam malt (g) | I12: Toplam(g) pound | J12: ppg | K12: ppg x ağırlık | L12: % toplam ağırlıkta | M12: renk (SRM) | N12: renk (lovibond) | O12: malt MCU | P12: Düzeltilmiş EBC | Q12: Lintern Derecesi | R12: Lintern Değeri | S12: Kontrol | T12: Nümerik Kontrol
A13: =IF(('ana girdiler'!A14)=0,(amerikan!A14),('ana girdiler'!A14)) -> Maris Otter (Muntons) | B13: =IF(('ana girdiler'!B14)=0,(IF($B$8=0,(amerikan!B14*$C$61),((amerikan!B14*$C$61)*$B$6))),(IF($B$8=0,('ana girdiler'!B14),(('ana girdiler'!B14)*$B$6)))) -> 0 | C13: =IF(('ana girdiler'!C14)=0,(IF($B$8=0,(amerikan!C14*$C$59),((amerikan!C14*$C$59)*$B$6))),(IF($B$8=0,('ana girdiler'!C14),(('ana girdiler'!C14)*$B$6)))) -> 2700 | D13: =IF(A13=0,0,IF((F13>G13),"yüzdeyi kontrol edin","yüzde uygun")) -> yüzde uygun | E13: =IF(A13=0,0,VLOOKUP(A13,'tahıl tablosu'!A$2:F$35,2,0)) -> Malt | F13: =IF(A13=0,0,(H13*100/($H$23))) -> 90 | G13: =IF(A13=0,0,VLOOKUP(A13,'tahıl tablosu'!A$2:F$35,6,0)) -> 100 | H13: =(B13*1000)+(C13) -> 2700 | I13: =H13/453.6 -> 5.952380952 | J13: =IF(A13=0,0,VLOOKUP(A13,'tahıl tablosu'!A$2:F$35,5,0)-1000) -> 36 | K13: =(I13*J13) -> 214.2857143 | L13: =IF(A13=0,0,H13*100/($H$23+$G$51)) -> 85.71428571 | M13: =IF(A13=0,0,VLOOKUP(A13,'tahıl tablosu'!A$2:F$35,3,0)) -> 2.3 | N13: =(M13+0.76)/1.35 -> 2.266666667 | O13: =IF(A13=0,0,((H13/1000)*N13*2.205)/(IF($B$8=0,($B$7*0.264),($B$7*0.264*$B$6)))) -> 4.259659091 | P13: =POWER(O13,0.6859)*1.4922*1.97 -> 7.942943378 | Q13: =IF(A13=0,0,VLOOKUP(A13,'tahıl tablosu'!A$2:F$35,4)) -> 62 | R13: =H13*Q13 -> 167400 | S13: =IF(A13=0,0,VLOOKUP(A13,'tahıl tablosu'!$A$2:$F$35,2,0)) -> Malt | T13: =IF(S13="Malt",1,0) -> 1
A14: =IF(('ana girdiler'!A15)=0,(amerikan!A15),('ana girdiler'!A15)) -> Munich II (weyermann) | B14: =IF(('ana girdiler'!B15)=0,(IF($B$8=0,(amerikan!B15*$C$61),((amerikan!B15*$C$61)*$B$6))),(IF($B$8=0,('ana girdiler'!B15),(('ana girdiler'!B15)*$B$6)))) -> 0 | C14: =IF(('ana girdiler'!C15)=0,(IF($B$8=0,(amerikan!C15*$C$59),((amerikan!C15*$C$59)*$B$6))),(IF($B$8=0,('ana girdiler'!C15),(('ana girdiler'!C15)*$B$6)))) -> 300 | D14: yüzde uygun | E14: =IF(A14=0,0,VLOOKUP(A14,'tahıl tablosu'!A$2:F$35,2,0)) -> Malt | F14: =IF(A14=0,0,(H14*100/($H$23))) -> 10 | G14: =IF(A14=0,0,VLOOKUP(A14,'tahıl tablosu'!A$2:F$35,6,0)) -> 10 | H14: =(B14*1000)+(C14) -> 300 | I14: =H14/453.6 -> 0.6613756614 | J14: =IF(A14=0,0,VLOOKUP(A14,'tahıl tablosu'!A$2:F$35,5,0)-1000) -> 36 | K14: 23.80952381 | L14: =IF(A14=0,0,H14*100/($H$23+$G$51)) -> 9.523809524 | M14: =IF(A14=0,0,VLOOKUP(A14,'tahıl tablosu'!A$2:F$35,3,0)) -> 11 | N14: =(M14+0.76)/1.35 -> 8.711111111 | O14: =IF(A14=0,0,((H14/1000)*N14*2.205)/(IF($B$8=0,($B$7*0.264),($B$7*0.264*$B$6)))) -> 1.818939394 | P14: =POWER(O14,0.6859)*1.4922 -> 2.249242903 | Q14: =IF(A14=0,0,VLOOKUP(A14,'tahıl tablosu'!A$2:F$35,4)) -> 0 | R14: 0 | S14: =IF(A14=0,0,VLOOKUP(A14,'tahıl tablosu'!$A$2:$F$35,2,0)) -> Malt | T14: =IF(S14="Malt",1,0) -> 1
A15: =IF(('ana girdiler'!A16)=0,(amerikan!A16),('ana girdiler'!A16)) -> 0 | B15: =IF(('ana girdiler'!B16)=0,(IF($B$8=0,(amerikan!B16*$C$61),((amerikan!B16*$C$61)*$B$6))),(IF($B$8=0,('ana girdiler'!B16),(('ana girdiler'!B16)*$B$6)))) -> 0 | C15: =IF(('ana girdiler'!C16)=0,(IF($B$8=0,(amerikan!C16*$C$59),((amerikan!C16*$C$59)*$B$6))),(IF($B$8=0,('ana girdiler'!C16),(('ana girdiler'!C16)*$B$6)))) -> 0 | D15: 0 | E15: =IF(A15=0,0,VLOOKUP(A15,'tahıl tablosu'!A$2:F$35,2,0)) -> 0 | F15: 0 | G15: =IF(A15=0,0,VLOOKUP(A15,'tahıl tablosu'!A$2:F$35,6,0)) -> 0 | H15: 0 | I15: 0 | J15: =IF(A15=0,0,VLOOKUP(A15,'tahıl tablosu'!A$2:F$35,5,0)-1000) -> 0 | K15: 0 | L15: 0 | M15: =IF(A15=0,0,VLOOKUP(A15,'tahıl tablosu'!A$2:F$35,3,0)) -> 0 | N15: 0.562962963 | O15: 0 | P15: 0 | Q15: =IF(A15=0,0,VLOOKUP(A15,'tahıl tablosu'!A$2:F$35,4)) -> 0 | R15: 0 | S15: =IF(A15=0,0,VLOOKUP(A15,'tahıl tablosu'!$A$2:$F$35,2,0)) -> 0 | T15: 0
A16: =IF(('ana girdiler'!A17)=0,(amerikan!A17),('ana girdiler'!A17)) -> 0 | B16: =IF(('ana girdiler'!B17)=0,(IF($B$8=0,(amerikan!B17*$C$61),((amerikan!B17*$C$61)*$B$6))),(IF($B$8=0,('ana girdiler'!B17),(('ana girdiler'!B17)*$B$6)))) -> 0 | C16: =IF(('ana girdiler'!C17)=0,(IF($B$8=0,(amerikan!C17*$C$59),((amerikan!C17*$C$59)*$B$6))),(IF($B$8=0,('ana girdiler'!C17),(('ana girdiler'!C17)*$B$6)))) -> 0 | D16: 0 | E16: =IF(A16=0,0,VLOOKUP(A16,'tahıl tablosu'!A$2:F$35,2,0)) -> 0 | F16: 0 | G16: =IF(A16=0,0,VLOOKUP(A16,'tahıl tablosu'!A$2:F$35,6,0)) -> 0 | H16: 0 | I16: 0 | J16: =IF(A16=0,0,VLOOKUP(A16,'tahıl tablosu'!A$2:F$35,5,0)-1000) -> 0 | K16: 0 | L16: 0 | M16: =IF(A16=0,0,VLOOKUP(A16,'tahıl tablosu'!A$2:F$35,3,0)) -> 0 | N16: 0.562962963 | O16: 0 | P16: 0 | Q16: =IF(A16=0,0,VLOOKUP(A16,'tahıl tablosu'!A$2:F$35,4)) -> 0 | R16: 0 | S16: =IF(A16=0,0,VLOOKUP(A16,'tahıl tablosu'!$A$2:$F$35,2,0)) -> 0 | T16: 0
A17: =IF(('ana girdiler'!A18)=0,(amerikan!A18),('ana girdiler'!A18)) -> 0 | B17: =IF(('ana girdiler'!B18)=0,(IF($B$8=0,(amerikan!B18*$C$61),((amerikan!B18*$C$61)*$B$6))),(IF($B$8=0,('ana girdiler'!B18),(('ana girdiler'!B18)*$B$6)))) -> 0 | C17: =IF(('ana girdiler'!C18)=0,(IF($B$8=0,(amerikan!C18*$C$59),((amerikan!C18*$C$59)*$B$6))),(IF($B$8=0,('ana girdiler'!C18),(('ana girdiler'!C18)*$B$6)))) -> 0 | D17: 0 | E17: =IF(A17=0,0,VLOOKUP(A17,'tahıl tablosu'!A$2:F$35,2,0)) -> 0 | F17: 0 | G17: =IF(A17=0,0,VLOOKUP(A17,'tahıl tablosu'!A$2:F$35,6,0)) -> 0 | H17: 0 | I17: 0 | J17: =IF(A17=0,0,VLOOKUP(A17,'tahıl tablosu'!A$2:F$35,5,0)-1000) -> 0 | K17: 0 | L17: 0 | M17: =IF(A17=0,0,VLOOKUP(A17,'tahıl tablosu'!A$2:F$35,3,0)) -> 0 | N17: 0.562962963 | O17: 0 | P17: 0 | Q17: =IF(A17=0,0,VLOOKUP(A17,'tahıl tablosu'!A$2:F$35,4)) -> 0 | R17: 0 | S17: =IF(A17=0,0,VLOOKUP(A17,'tahıl tablosu'!$A$2:$F$35,2,0)) -> 0 | T17: 0
A18: =IF(('ana girdiler'!A19)=0,(amerikan!A19),('ana girdiler'!A19)) -> 0 | B18: =IF(('ana girdiler'!B19)=0,(IF($B$8=0,(amerikan!B19*$C$61),((amerikan!B19*$C$61)*$B$6))),(IF($B$8=0,('ana girdiler'!B19),(('ana girdiler'!B19)*$B$6)))) -> 0 | C18: =IF(('ana girdiler'!C19)=0,(IF($B$8=0,(amerikan!C19*$C$59),((amerikan!C19*$C$59)*$B$6))),(IF($B$8=0,('ana girdiler'!C19),(('ana girdiler'!C19)*$B$6)))) -> 0 | D18: 0 | E18: =IF(A18=0,0,VLOOKUP(A18,'tahıl tablosu'!A$2:F$35,2,0)) -> 0 | F18: 0 | G18: =IF(A18=0,0,VLOOKUP(A18,'tahıl tablosu'!A$2:F$35,6,0)) -> 0 | H18: 0 | I18: 0 | J18: =IF(A18=0,0,VLOOKUP(A18,'tahıl tablosu'!A$2:F$35,5,0)-1000) -> 0 | K18: 0 | L18: 0 | M18: =IF(A18=0,0,VLOOKUP(A18,'tahıl tablosu'!A$2:F$35,3,0)) -> 0 | N18: 0.562962963 | O18: 0 | P18: 0 | Q18: =IF(A18=0,0,VLOOKUP(A18,'tahıl tablosu'!A$2:F$35,4)) -> 0 | R18: 0 | S18: =IF(A18=0,0,VLOOKUP(A18,'tahıl tablosu'!$A$2:$F$35,2,0)) -> 0 | T18: 0
A19: =IF(('ana girdiler'!A20)=0,(amerikan!A20),('ana girdiler'!A20)) -> 0 | B19: =IF(('ana girdiler'!B20)=0,(IF($B$8=0,(amerikan!B20*$C$61),((amerikan!B20*$C$61)*$B$6))),(IF($B$8=0,('ana girdiler'!B20),(('ana girdiler'!B20)*$B$6)))) -> 0 | C19: =IF(('ana girdiler'!C20)=0,(IF($B$8=0,(amerikan!C20*$C$59),((amerikan!C20*$C$59)*$B$6))),(IF($B$8=0,('ana girdiler'!C20),(('ana girdiler'!C20)*$B$6)))) -> 0 | D19: 0 | E19: =IF(A19=0,0,VLOOKUP(A19,'tahıl tablosu'!A$2:F$35,2,0)) -> 0 | F19: 0 | G19: =IF(A19=0,0,VLOOKUP(A19,'tahıl tablosu'!A$2:F$35,6,0)) -> 0 | H19: 0 | I19: 0 | J19: =IF(A19=0,0,VLOOKUP(A19,'tahıl tablosu'!A$2:F$35,5,0)-1000) -> 0 | K19: 0 | L19: 0 | M19: =IF(A19=0,0,VLOOKUP(A19,'tahıl tablosu'!A$2:F$35,3,0)) -> 0 | N19: 0.562962963 | O19: 0 | P19: 0 | Q19: =IF(A19=0,0,VLOOKUP(A19,'tahıl tablosu'!A$2:F$35,4)) -> 0 | R19: 0 | S19: =IF(A19=0,0,VLOOKUP(A19,'tahıl tablosu'!$A$2:$F$35,2,0)) -> 0 | T19: 0
A20: =IF(('ana girdiler'!A21)=0,(amerikan!A21),('ana girdiler'!A21)) -> 0 | B20: =IF(('ana girdiler'!B21)=0,(IF($B$8=0,(amerikan!B21*$C$61),((amerikan!B21*$C$61)*$B$6))),(IF($B$8=0,('ana girdiler'!B21),(('ana girdiler'!B21)*$B$6)))) -> 0 | C20: =IF(('ana girdiler'!C21)=0,(IF($B$8=0,(amerikan!C21*$C$59),((amerikan!C21*$C$59)*$B$6))),(IF($B$8=0,('ana girdiler'!C21),(('ana girdiler'!C21)*$B$6)))) -> 0 | D20: 0 | E20: =IF(A20=0,0,VLOOKUP(A20,'tahıl tablosu'!A$2:F$35,2,0)) -> 0 | F20: 0 | G20: =IF(A20=0,0,VLOOKUP(A20,'tahıl tablosu'!A$2:F$35,6,0)) -> 0 | H20: 0 | I20: 0 | J20: =IF(A20=0,0,VLOOKUP(A20,'tahıl tablosu'!A$2:F$35,5,0)-1000) -> 0 | K20: 0 | L20: 0 | M20: =IF(A20=0,0,VLOOKUP(A20,'tahıl tablosu'!A$2:F$35,3,0)) -> 0 | N20: 0.562962963 | O20: 0 | P20: 0 | Q20: =IF(A20=0,0,VLOOKUP(A20,'tahıl tablosu'!A$2:F$35,4)) -> 0 | R20: 0 | S20: =IF(A20=0,0,VLOOKUP(A20,'tahıl tablosu'!$A$2:$F$35,2,0)) -> 0 | T20: 0
A21: =IF(('ana girdiler'!A22)=0,(amerikan!A22),('ana girdiler'!A22)) -> 0 | B21: =IF(('ana girdiler'!B22)=0,(IF($B$8=0,(amerikan!B22*$C$61),((amerikan!B22*$C$61)*$B$6))),(IF($B$8=0,('ana girdiler'!B22),(('ana girdiler'!B22)*$B$6)))) -> 0 | C21: =IF(('ana girdiler'!C22)=0,(IF($B$8=0,(amerikan!C22*$C$59),((amerikan!C22*$C$59)*$B$6))),(IF($B$8=0,('ana girdiler'!C22),(('ana girdiler'!C22)*$B$6)))) -> 0 | D21: 0 | E21: =IF(A21=0,0,VLOOKUP(A21,'tahıl tablosu'!A$2:F$35,2,0)) -> 0 | F21: 0 | G21: =IF(A21=0,0,VLOOKUP(A21,'tahıl tablosu'!A$2:F$35,6,0)) -> 0 | H21: 0 | I21: 0 | J21: =IF(A21=0,0,VLOOKUP(A21,'tahıl tablosu'!A$2:F$35,5,0)-1000) -> 0 | K21: 0 | L21: 0 | M21: =IF(A21=0,0,VLOOKUP(A21,'tahıl tablosu'!A$2:F$35,3,0)) -> 0 | N21: 0.562962963 | O21: 0 | P21: 0 | Q21: =IF(A21=0,0,VLOOKUP(A21,'tahıl tablosu'!A$2:F$35,4)) -> 0 | R21: 0 | S21: =IF(A21=0,0,VLOOKUP(A21,'tahıl tablosu'!$A$2:$F$35,2,0)) -> 0 | T21: 0
A22: =IF(('ana girdiler'!A23)=0,(amerikan!A23),('ana girdiler'!A23)) -> 0 | B22: =IF(('ana girdiler'!B23)=0,(IF($B$8=0,(amerikan!B23*$C$61),((amerikan!B23*$C$61)*$B$6))),(IF($B$8=0,('ana girdiler'!B23),(('ana girdiler'!B23)*$B$6)))) -> 0 | C22: =IF(('ana girdiler'!C23)=0,(IF($B$8=0,(amerikan!C23*$C$59),((amerikan!C23*$C$59)*$B$6))),(IF($B$8=0,('ana girdiler'!C23),(('ana girdiler'!C23)*$B$6)))) -> 0 | D22: 0 | E22: =IF(A22=0,0,VLOOKUP(A22,'tahıl tablosu'!A$2:F$35,2,0)) -> 0 | F22: 0 | G22: =IF(A22=0,0,VLOOKUP(A22,'tahıl tablosu'!A$2:F$35,6,0)) -> 0 | H22: 0 | I22: 0 | J22: =IF(A22=0,0,VLOOKUP(A22,'tahıl tablosu'!A$2:F$35,5,0)-1000) -> 0 | K22: 0 | L22: 0 | M22: =IF(A22=0,0,VLOOKUP(A22,'tahıl tablosu'!A$2:F$35,3,0)) -> 0 | N22: 0.562962963 | O22: 0 | P22: 0 | Q22: =IF(A22=0,0,VLOOKUP(A22,'tahıl tablosu'!A$2:F$35,4)) -> 0 | R22: 0 | S22: =IF(A22=0,0,VLOOKUP(A22,'tahıl tablosu'!$A$2:$F$35,2,0)) -> 0 | T22: 0
G23: toplam malt | H23: =SUM(H13:H22) -> 3000 | J23: toplam ppg | K23: =SUM(K13:K22) -> 238.0952381 | O23: toplam EBC | P23: =SUM(P13:P22) -> 10.19218628 | Q23: toplam lintern | R23: =SUM(R13:R22) -> 167400 | T23: =SUM(T13:T22) -> 2
A25: Şerbetçi Otu Türü | B25: g | C25: dak. | D25: Önerilen Kullanım şekli | E25: AA % | F25: g | G25: u% | H25: cg | I25: IBU
A26: =IF(('ana girdiler'!A41)=0,(amerikan!A41),('ana girdiler'!A41)) -> Perle | B26: =IF(('ana girdiler'!B41)=0,(IF($B$8=0,(amerikan!B41*$C$59),((amerikan!B41*$C$59)*$B$6))),(IF($B$8=0,('ana girdiler'!B41),(('ana girdiler'!B41)*$B$6)))) -> 12 | C26: =IF(('ana girdiler'!C41)=0,(amerikan!C41),('ana girdiler'!C41)) -> 60 | D26: =IF(A26=0,0,(VLOOKUP(A26,'serbetçi otu tablosu'!A$2:D$30,4,0))) -> Acılık | E26: =IF(A26=0,0,VLOOKUP(A26,'serbetçi otu tablosu'!A$1:D$30,3,0)) -> 7.3 | F26: =B26 -> 12 | G26: =VLOOKUP(C26,'utilisation chart'!$A$4:$L$28,MATCH($B$9,'utilisation chart'!$B$3:$L$3,1)+1,1) -> 0.252 | H26: =IF($B$9>1050,1+((($B$9-1050)/1000)/2),1) -> 1 | I26: =IF(C26<16,0,(B26*G26*E26*1000)/(IF($B$8=0,($B$7*H26*100),($B$7*H26*100*$B$6)))) -> 18.396
A27: =IF(('ana girdiler'!A42)=0,(amerikan!A42),('ana girdiler'!A42)) -> Target | B27: =IF(('ana girdiler'!B42)=0,(IF($B$8=0,(amerikan!B42*$C$59),((amerikan!B42*$C$59)*$B$6))),(IF($B$8=0,('ana girdiler'!B42),(('ana girdiler'!B42)*$B$6)))) -> 20 | C27: =IF(('ana girdiler'!C42)=0,(amerikan!C42),('ana girdiler'!C42)) -> 20 | D27: =IF(A27=0,0,(VLOOKUP(A27,'serbetçi otu tablosu'!A$2:D$30,4,0))) -> Acılık | E27: =IF(A27=0,0,VLOOKUP(A27,'serbetçi otu tablosu'!A$1:D$30,3,0)) -> 10.7 | F27: 20 | G27: =VLOOKUP(C27,'utilisation chart'!$A$4:$L$28,MATCH($B$9,'utilisation chart'!$B$3:$L$3,1)+1,1) -> 0.142 | H27: =IF($B$9>1050,1+((($B$9-1050)/1000)/2),1) -> 1 | I27: =IF(C27<16,0,(B27*G27*E27*1000)/(IF($B$8=0,($B$7*H27*100),($B$7*H27*100*$B$6)))) -> 25.32333333
A28: =IF(('ana girdiler'!A43)=0,(amerikan!A43),('ana girdiler'!A43)) -> Perle | B28: =IF(('ana girdiler'!B43)=0,(IF($B$8=0,(amerikan!B43*$C$59),((amerikan!B43*$C$59)*$B$6))),(IF($B$8=0,('ana girdiler'!B43),(('ana girdiler'!B43)*$B$6)))) -> 25 | C28: =IF(('ana girdiler'!C43)=0,(amerikan!C43),('ana girdiler'!C43)) -> 5 | D28: =IF(A28=0,0,(VLOOKUP(A28,'serbetçi otu tablosu'!A$2:D$30,4,0))) -> Acılık | E28: =IF(A28=0,0,VLOOKUP(A28,'serbetçi otu tablosu'!A$1:D$30,3,0)) -> 7.3 | F28: 25 | G28: =VLOOKUP(C28,'utilisation chart'!$A$4:$L$28,MATCH($B$9,'utilisation chart'!$B$3:$L$3,1)+1,1) -> 0.031 | H28: 1 | I28: 0
A29: =IF(('ana girdiler'!A44)=0,(amerikan!A44),('ana girdiler'!A44)) -> Target | B29: =IF(('ana girdiler'!B44)=0,(IF($B$8=0,(amerikan!B44*$C$59),((amerikan!B44*$C$59)*$B$6))),(IF($B$8=0,('ana girdiler'!B44),(('ana girdiler'!B44)*$B$6)))) -> 25 | C29: =IF(('ana girdiler'!C44)=0,(amerikan!C44),('ana girdiler'!C44)) -> 0 | D29: =IF(A29=0,0,(VLOOKUP(A29,'serbetçi otu tablosu'!A$2:D$30,4,0))) -> Acılık | E29: =IF(A29=0,0,VLOOKUP(A29,'serbetçi otu tablosu'!A$1:D$30,3,0)) -> 10.7 | F29: 25 | G29: =VLOOKUP(C29,'utilisation chart'!$A$4:$L$28,MATCH($B$9,'utilisation chart'!$B$3:$L$3,1)+1,1) -> 0 | H29: 1 | I29: 0
A30: =IF(('ana girdiler'!A45)=0,(amerikan!A45),('ana girdiler'!A45)) -> Tettnang | B30: =IF(('ana girdiler'!B45)=0,(IF($B$8=0,(amerikan!B45*$C$59),((amerikan!B45*$C$59)*$B$6))),(IF($B$8=0,('ana girdiler'!B45),(('ana girdiler'!B45)*$B$6)))) -> 10 | C30: =IF(('ana girdiler'!C45)=0,(amerikan!C45),('ana girdiler'!C45)) -> 0 | D30: =IF(A30=0,0,(VLOOKUP(A30,'serbetçi otu tablosu'!A$2:D$30,4,0))) -> Aroma | E30: =IF(A30=0,0,VLOOKUP(A30,'serbetçi otu tablosu'!A$1:D$30,3,0)) -> 4.2 | F30: 10 | G30: =VLOOKUP(C30,'utilisation chart'!$A$4:$L$28,MATCH($B$9,'utilisation chart'!$B$3:$L$3,1)+1,1) -> 0 | H30: 1 | I30: 0
A31: =IF(('ana girdiler'!A46)=0,(amerikan!A46),('ana girdiler'!A46)) -> 0 | B31: =IF(('ana girdiler'!B46)=0,(IF($B$8=0,(amerikan!B46*$C$59),((amerikan!B46*$C$59)*$B$6))),(IF($B$8=0,('ana girdiler'!B46),(('ana girdiler'!B46)*$B$6)))) -> 0 | C31: =IF(('ana girdiler'!C46)=0,(amerikan!C46),('ana girdiler'!C46)) -> 0 | D31: =IF(A31=0,0,(VLOOKUP(A31,'serbetçi otu tablosu'!A$2:D$30,4,0))) -> 0 | E31: =IF(A31=0,0,VLOOKUP(A31,'serbetçi otu tablosu'!A$1:D$30,3,0)) -> 0 | F31: 0 | G31: =VLOOKUP(C31,'utilisation chart'!$A$4:$L$28,MATCH($B$9,'utilisation chart'!$B$3:$L$3,1)+1,1) -> 0 | H31: 1 | I31: 0
A32: =IF(('ana girdiler'!A47)=0,(amerikan!A47),('ana girdiler'!A47)) -> 0 | B32: =IF(('ana girdiler'!B47)=0,(IF($B$8=0,(amerikan!B47*$C$59),((amerikan!B47*$C$59)*$B$6))),(IF($B$8=0,('ana girdiler'!B47),(('ana girdiler'!B47)*$B$6)))) -> 0 | C32: =IF(('ana girdiler'!C47)=0,(amerikan!C47),('ana girdiler'!C47)) -> 0 | D32: =IF(A32=0,0,(VLOOKUP(A32,'serbetçi otu tablosu'!A$2:D$30,4,0))) -> 0 | E32: =IF(A32=0,0,VLOOKUP(A32,'serbetçi otu tablosu'!A$1:D$30,3,0)) -> 0 | F32: 0 | G32: =VLOOKUP(C32,'utilisation chart'!$A$4:$L$28,MATCH($B$9,'utilisation chart'!$B$3:$L$3,1)+1,1) -> 0 | H32: 1 | I32: 0
A33: =IF(('ana girdiler'!A48)=0,(amerikan!A48),('ana girdiler'!A48)) -> 0 | B33: =IF(('ana girdiler'!B48)=0,(IF($B$8=0,(amerikan!B48*$C$59),((amerikan!B48*$C$59)*$B$6))),(IF($B$8=0,('ana girdiler'!B48),(('ana girdiler'!B48)*$B$6)))) -> 0 | C33: =IF(('ana girdiler'!C48)=0,(amerikan!C48),('ana girdiler'!C48)) -> 0 | D33: =IF(A33=0,0,(VLOOKUP(A33,'serbetçi otu tablosu'!A$2:D$30,4,0))) -> 0 | E33: =IF(A33=0,0,VLOOKUP(A33,'serbetçi otu tablosu'!A$1:D$30,3,0)) -> 0 | F33: 0 | G33: =VLOOKUP(C33,'utilisation chart'!$A$4:$L$28,MATCH($B$9,'utilisation chart'!$B$3:$L$3,1)+1,1) -> 0 | H33: 1 | I33: 0
A34: =IF(('ana girdiler'!A49)=0,(amerikan!A49),('ana girdiler'!A49)) -> 0 | B34: =IF(('ana girdiler'!B49)=0,(IF($B$8=0,(amerikan!B49*$C$59),((amerikan!B49*$C$59)*$B$6))),(IF($B$8=0,('ana girdiler'!B49),(('ana girdiler'!B49)*$B$6)))) -> 0 | C34: =IF(('ana girdiler'!C49)=0,(amerikan!C49),('ana girdiler'!C49)) -> 0 | D34: =IF(A34=0,0,(VLOOKUP(A34,'serbetçi otu tablosu'!A$2:D$30,4,0))) -> 0 | E34: =IF(A34=0,0,VLOOKUP(A34,'serbetçi otu tablosu'!A$1:D$30,3,0)) -> 0 | F34: 0 | G34: =VLOOKUP(C34,'utilisation chart'!$A$4:$L$28,MATCH($B$9,'utilisation chart'!$B$3:$L$3,1)+1,1) -> 0 | H34: 1 | I34: 0
A35: =IF(('ana girdiler'!A50)=0,(amerikan!A50),('ana girdiler'!A50)) -> 0 | B35: =IF(('ana girdiler'!B50)=0,(IF($B$8=0,(amerikan!B50*$C$59),((amerikan!B50*$C$59)*$B$6))),(IF($B$8=0,('ana girdiler'!B50),(('ana girdiler'!B50)*$B$6)))) -> 0 | C35: =IF(('ana girdiler'!C50)=0,(amerikan!C50),('ana girdiler'!C50)) -> 0 | D35: =IF(A35=0,0,(VLOOKUP(A35,'serbetçi otu tablosu'!A$2:D$30,4,0))) -> 0 | E35: =IF(A35=0,0,VLOOKUP(A35,'serbetçi otu tablosu'!A$1:D$30,3,0)) -> 0 | F35: 0 | G35: =VLOOKUP(C35,'utilisation chart'!$A$4:$L$28,MATCH($B$9,'utilisation chart'!$B$3:$L$3,1)+1,1) -> 0 | H35: 1 | I35: 0
H36: toplam IBU | I36: =SUM(I26:I35) -> 43.71933333
A40: Malt Dışı Katkılar ve Malt Özleri | B40: kg | C40: g | D40: toplam %şeker katkı kontrolü | E40: % toplam ağırıkta | F40: %maks şeker ve katkı | G40: Toplam (g) | H40: toplam(pound) | I40: ppg | J40: ppg x ağırlık | K40: renk (SRM) | L40: renk (lovibond) | M40: katkı şeker MCU | N40: Düzeltilmiş EBC | O40: Kontrol | P40: Nümerik Kontrol | Q40: DME Kontrol | R40: LME Kontrol
A41: =IF(('ana girdiler'!A61)=0,(amerikan!A61),('ana girdiler'!A61)) -> Akçağaç Şurubu | B41: =IF(('ana girdiler'!B61)=0,(IF($B$8=0,(amerikan!B61*$C$61),((amerikan!B61*$C$61)*$B$6))),(IF($B$8=0,('ana girdiler'!B61),(('ana girdiler'!B61)*$B$6)))) -> 0 | C41: =IF(('ana girdiler'!C61)=0,(IF($B$8=0,(amerikan!C61*$C$59),((amerikan!C61*$C$59)*$B$6))),(IF($B$8=0,('ana girdiler'!C61),(('ana girdiler'!C61)*$B$6)))) -> 150 | D41: =IF(A41=0,0,IF((E41>F41),"yüzdeyi kontrol edin","yüzde uygun")) -> yüzde uygun | E41: =G41*100/($H$23+$G$51+$J$24) -> 4.761904762 | F41: =IF(A41=0,0,VLOOKUP(A41,'şeker ve katkılar'!A$2:E$298,5,0)) -> 10 | G41: =(B41*1000)+(C41) -> 150 | H41: =G41/453.6 -> 0.3306878307 | I41: =IF(A41=0,0,VLOOKUP(A41,'şeker ve katkılar'!A$2:E$298,4,0)-1000) -> 30 | J41: =H41*I41 -> 9.920634921 | K41: =IF(A41=0,0,VLOOKUP(A41,'şeker ve katkılar'!A$2:E$298,3,0)) -> 35 | L41: =(K41+0.76)/1.35 -> 26.48888889 | M41: =((G41/1000)*L41*2.205)/((IF($B$8=0,($B$7*0.264),($B$7*0.264*$B$6)))) -> 2.765530303 | N41: =POWER(M41,0.6859)*1.4922*1.97 -> 5.906212673 | O41: =IF(A41=0,0,VLOOKUP(A41,'şeker ve katkılar'!$A$2:$E$300,2,0)) -> Katkı | P41: =IF(OR(O41="LME",O41="DME"),1,0) -> 0 | Q41: =IF(O41="DME",G41,0) -> 0 | R41: =IF(O41="LME",G41,0) -> 0
A42: =IF(('ana girdiler'!A62)=0,(amerikan!A62),('ana girdiler'!A62)) -> 0 | B42: =IF(('ana girdiler'!B62)=0,(IF($B$8=0,(amerikan!B62*$C$61),((amerikan!B62*$C$61)*$B$6))),(IF($B$8=0,('ana girdiler'!B62),(('ana girdiler'!B62)*$B$6)))) -> 0 | C42: =IF(('ana girdiler'!C62)=0,(IF($B$8=0,(amerikan!C62*$C$59),((amerikan!C62*$C$59)*$B$6))),(IF($B$8=0,('ana girdiler'!C62),(('ana girdiler'!C62)*$B$6)))) -> 0 | D42: 0 | E42: =G42*100/($H$23+$G$51) -> 0 | F42: =IF(A42=0,0,VLOOKUP(A42,'şeker ve katkılar'!A$2:E$298,5,0)) -> 0 | G42: 0 | H42: =G42/453.6 -> 0 | I42: =IF(A42=0,0,VLOOKUP(A42,'şeker ve katkılar'!A$2:E$298,4,0)-1000) -> 0 | J42: 0 | K42: =IF(A42=0,0,VLOOKUP(A42,'şeker ve katkılar'!A$2:E$298,3,0)) -> 0 | L42: =(K42+0.76)/1.35 -> 0.562962963 | M42: =((G42/1000)*L42*2.205)/((IF($B$8=0,($B$7*0.264),($B$7*0.264*$B$6)))) -> 0 | N42: =POWER(M42,0.6859)*1.4922*1.97 -> 0 | O42: =IF(A42=0,0,VLOOKUP(A42,'şeker ve katkılar'!$A$2:$E$300,2,0)) -> 0 | P42: =IF(OR(O42="LME",O42="DME"),1,0) -> 0 | Q42: =IF(O42="DME",G42,0) -> 0 | R42: =IF(O42="LME",G42,0) -> 0
A43: =IF(('ana girdiler'!A63)=0,(amerikan!A63),('ana girdiler'!A63)) -> 0 | B43: =IF(('ana girdiler'!B63)=0,(IF($B$8=0,(amerikan!B63*$C$61),((amerikan!B63*$C$61)*$B$6))),(IF($B$8=0,('ana girdiler'!B63),(('ana girdiler'!B63)*$B$6)))) -> 0 | C43: =IF(('ana girdiler'!C63)=0,(IF($B$8=0,(amerikan!C63*$C$59),((amerikan!C63*$C$59)*$B$6))),(IF($B$8=0,('ana girdiler'!C63),(('ana girdiler'!C63)*$B$6)))) -> 0 | D43: 0 | E43: 0 | F43: =IF(A43=0,0,VLOOKUP(A43,'şeker ve katkılar'!A$2:E$298,5,0)) -> 0 | G43: 0 | H43: 0 | I43: =IF(A43=0,0,VLOOKUP(A43,'şeker ve katkılar'!A$2:E$298,4,0)-1000) -> 0 | J43: 0 | K43: =IF(A43=0,0,VLOOKUP(A43,'şeker ve katkılar'!A$2:E$298,3,0)) -> 0 | L43: 0.562962963 | M43: 0 | N43: 0 | O43: =IF(A43=0,0,VLOOKUP(A43,'şeker ve katkılar'!$A$2:$E$300,2,0)) -> 0 | P43: 0 | Q43: 0 | R43: 0
A44: =IF(('ana girdiler'!A64)=0,(amerikan!A64),('ana girdiler'!A64)) -> 0 | B44: =IF(('ana girdiler'!B64)=0,(IF($B$8=0,(amerikan!B64*$C$61),((amerikan!B64*$C$61)*$B$6))),(IF($B$8=0,('ana girdiler'!B64),(('ana girdiler'!B64)*$B$6)))) -> 0 | C44: =IF(('ana girdiler'!C64)=0,(IF($B$8=0,(amerikan!C64*$C$59),((amerikan!C64*$C$59)*$B$6))),(IF($B$8=0,('ana girdiler'!C64),(('ana girdiler'!C64)*$B$6)))) -> 0 | D44: 0 | E44: 0 | F44: =IF(A44=0,0,VLOOKUP(A44,'şeker ve katkılar'!A$2:E$298,5,0)) -> 0 | G44: 0 | H44: 0 | I44: =IF(A44=0,0,VLOOKUP(A44,'şeker ve katkılar'!A$2:E$298,4,0)-1000) -> 0 | J44: 0 | K44: =IF(A44=0,0,VLOOKUP(A44,'şeker ve katkılar'!A$2:E$298,3,0)) -> 0 | L44: 0.562962963 | M44: 0 | N44: 0 | O44: =IF(A44=0,0,VLOOKUP(A44,'şeker ve katkılar'!$A$2:$E$300,2,0)) -> 0 | P44: 0 | Q44: 0 | R44: 0
A45: =IF(('ana girdiler'!A65)=0,(amerikan!A65),('ana girdiler'!A65)) -> 0 | B45: =IF(('ana girdiler'!B65)=0,(IF($B$8=0,(amerikan!B65*$C$61),((amerikan!B65*$C$61)*$B$6))),(IF($B$8=0,('ana girdiler'!B65),(('ana girdiler'!B65)*$B$6)))) -> 0 | C45: =IF(('ana girdiler'!C65)=0,(IF($B$8=0,(amerikan!C65*$C$59),((amerikan!C65*$C$59)*$B$6))),(IF($B$8=0,('ana girdiler'!C65),(('ana girdiler'!C65)*$B$6)))) -> 0 | D45: 0 | E45: 0 | F45: =IF(A45=0,0,VLOOKUP(A45,'şeker ve katkılar'!A$2:E$298,5,0)) -> 0 | G45: 0 | H45: 0 | I45: =IF(A45=0,0,VLOOKUP(A45,'şeker ve katkılar'!A$2:E$298,4,0)-1000) -> 0 | J45: 0 | K45: =IF(A45=0,0,VLOOKUP(A45,'şeker ve katkılar'!A$2:E$298,3,0)) -> 0 | L45: 0.562962963 | M45: 0 | N45: 0 | O45: =IF(A45=0,0,VLOOKUP(A45,'şeker ve katkılar'!$A$2:$E$300,2,0)) -> 0 | P45: 0 | Q45: 0 | R45: 0
A46: =IF(('ana girdiler'!A66)=0,(amerikan!A66),('ana girdiler'!A66)) -> 0 | B46: =IF(('ana girdiler'!B66)=0,(IF($B$8=0,(amerikan!B66*$C$61),((amerikan!B66*$C$61)*$B$6))),(IF($B$8=0,('ana girdiler'!B66),(('ana girdiler'!B66)*$B$6)))) -> 0 | C46: =IF(('ana girdiler'!C66)=0,(IF($B$8=0,(amerikan!C66*$C$59),((amerikan!C66*$C$59)*$B$6))),(IF($B$8=0,('ana girdiler'!C66),(('ana girdiler'!C66)*$B$6)))) -> 0 | D46: 0 | E46: 0 | F46: =IF(A46=0,0,VLOOKUP(A46,'şeker ve katkılar'!A$2:E$298,5,0)) -> 0 | G46: 0 | H46: 0 | I46: =IF(A46=0,0,VLOOKUP(A46,'şeker ve katkılar'!A$2:E$298,4,0)-1000) -> 0 | J46: 0 | K46: =IF(A46=0,0,VLOOKUP(A46,'şeker ve katkılar'!A$2:E$298,3,0)) -> 0 | L46: 0.562962963 | M46: 0 | N46: 0 | O46: =IF(A46=0,0,VLOOKUP(A46,'şeker ve katkılar'!$A$2:$E$300,2,0)) -> 0 | P46: 0 | Q46: 0 | R46: 0
A47: =IF(('ana girdiler'!A67)=0,(amerikan!A67),('ana girdiler'!A67)) -> 0 | B47: =IF(('ana girdiler'!B67)=0,(IF($B$8=0,(amerikan!B67*$C$61),((amerikan!B67*$C$61)*$B$6))),(IF($B$8=0,('ana girdiler'!B67),(('ana girdiler'!B67)*$B$6)))) -> 0 | C47: =IF(('ana girdiler'!C67)=0,(IF($B$8=0,(amerikan!C67*$C$59),((amerikan!C67*$C$59)*$B$6))),(IF($B$8=0,('ana girdiler'!C67),(('ana girdiler'!C67)*$B$6)))) -> 0 | D47: 0 | E47: 0 | F47: =IF(A47=0,0,VLOOKUP(A47,'şeker ve katkılar'!A$2:E$298,5,0)) -> 0 | G47: 0 | H47: 0 | I47: =IF(A47=0,0,VLOOKUP(A47,'şeker ve katkılar'!A$2:E$298,4,0)-1000) -> 0 | J47: 0 | K47: =IF(A47=0,0,VLOOKUP(A47,'şeker ve katkılar'!A$2:E$298,3,0)) -> 0 | L47: 0.562962963 | M47: 0 | N47: 0 | O47: =IF(A47=0,0,VLOOKUP(A47,'şeker ve katkılar'!$A$2:$E$300,2,0)) -> 0 | P47: 0 | Q47: 0 | R47: 0
A48: =IF(('ana girdiler'!A68)=0,(amerikan!A68),('ana girdiler'!A68)) -> 0 | B48: =IF(('ana girdiler'!B68)=0,(IF($B$8=0,(amerikan!B68*$C$61),((amerikan!B68*$C$61)*$B$6))),(IF($B$8=0,('ana girdiler'!B68),(('ana girdiler'!B68)*$B$6)))) -> 0 | C48: =IF(('ana girdiler'!C68)=0,(IF($B$8=0,(amerikan!C68*$C$59),((amerikan!C68*$C$59)*$B$6))),(IF($B$8=0,('ana girdiler'!C68),(('ana girdiler'!C68)*$B$6)))) -> 0 | D48: 0 | E48: 0 | F48: =IF(A48=0,0,VLOOKUP(A48,'şeker ve katkılar'!A$2:E$298,5,0)) -> 0 | G48: 0 | H48: 0 | I48: =IF(A48=0,0,VLOOKUP(A48,'şeker ve katkılar'!A$2:E$298,4,0)-1000) -> 0 | J48: 0 | K48: =IF(A48=0,0,VLOOKUP(A48,'şeker ve katkılar'!A$2:E$298,3,0)) -> 0 | L48: 0.562962963 | M48: 0 | N48: 0 | O48: =IF(A48=0,0,VLOOKUP(A48,'şeker ve katkılar'!$A$2:$E$300,2,0)) -> 0 | P48: 0 | Q48: 0 | R48: 0
A49: =IF(('ana girdiler'!A69)=0,(amerikan!A69),('ana girdiler'!A69)) -> 0 | B49: =IF(('ana girdiler'!B69)=0,(IF($B$8=0,(amerikan!B69*$C$61),((amerikan!B69*$C$61)*$B$6))),(IF($B$8=0,('ana girdiler'!B69),(('ana girdiler'!B69)*$B$6)))) -> 0 | C49: =IF(('ana girdiler'!C69)=0,(IF($B$8=0,(amerikan!C69*$C$59),((amerikan!C69*$C$59)*$B$6))),(IF($B$8=0,('ana girdiler'!C69),(('ana girdiler'!C69)*$B$6)))) -> 0 | D49: 0 | E49: 0 | F49: =IF(A49=0,0,VLOOKUP(A49,'şeker ve katkılar'!A$2:E$298,5,0)) -> 0 | G49: 0 | H49: 0 | I49: =IF(A49=0,0,VLOOKUP(A49,'şeker ve katkılar'!A$2:E$298,4,0)-1000) -> 0 | J49: 0 | K49: =IF(A49=0,0,VLOOKUP(A49,'şeker ve katkılar'!A$2:E$298,3,0)) -> 0 | L49: 0.562962963 | M49: 0 | N49: 0 | O49: =IF(A49=0,0,VLOOKUP(A49,'şeker ve katkılar'!$A$2:$E$300,2,0)) -> 0 | P49: 0 | Q49: 0 | R49: 0
A50: =IF(('ana girdiler'!A70)=0,(amerikan!A70),('ana girdiler'!A70)) -> 0 | B50: =IF(('ana girdiler'!B70)=0,(IF($B$8=0,(amerikan!B70*$C$61),((amerikan!B70*$C$61)*$B$6))),(IF($B$8=0,('ana girdiler'!B70),(('ana girdiler'!B70)*$B$6)))) -> 0 | C50: =IF(('ana girdiler'!C70)=0,(IF($B$8=0,(amerikan!C70*$C$59),((amerikan!C70*$C$59)*$B$6))),(IF($B$8=0,('ana girdiler'!C70),(('ana girdiler'!C70)*$B$6)))) -> 0 | D50: 0 | E50: 0 | F50: =IF(A50=0,0,VLOOKUP(A50,'şeker ve katkılar'!A$2:E$298,5,0)) -> 0 | G50: 0 | H50: 0 | I50: =IF(A50=0,0,VLOOKUP(A50,'şeker ve katkılar'!A$2:E$298,4,0)-1000) -> 0 | J50: 0 | K50: =IF(A50=0,0,VLOOKUP(A50,'şeker ve katkılar'!A$2:E$298,3,0)) -> 0 | L50: 0.562962963 | M50: 0 | N50: 0 | O50: =IF(A50=0,0,VLOOKUP(A50,'şeker ve katkılar'!$A$2:$E$300,2,0)) -> 0 | P50: 0 | Q50: 0 | R50: 0
F51: toplam şeker ve katkı | G51: =SUM(G41:G50) -> 150 | J51: =SUM(J41:J50) -> 9.920634921 | M51: toplam EBC | N51: =SUM(N41:N50) -> 5.906212673 | P51: =SUM(P41:P50) -> 0 | Q51: =SUM(Q41:Q50) -> 0 | R51: =SUM(R41:R50) -> 0
A54: alkolden gelen kalori (kcal) | B54: karbonhidrattan gelen kalori (kcal) | E54: Toplam kalori (kcal)
A55: =IF(('ana girdiler'!L3)=0,(1881.22*amerikan!L6*(amerikan!L5-amerikan!L6)/(1775-amerikan!L5)/1000),(1881.22*'ana girdiler'!L6*('ana girdiler'!L5-'ana girdiler'!L6)/(1775-'ana girdiler'!L5)/1000)) -> 119.1455158 | B55: =IF(('ana girdiler'!L3)=0,(((3550*amerikan!L6*((0.1808*amerikan!L5)+(0.8192*amerikan!L6)-1001)))/1000000),(((3550*'ana girdiler'!L6*((0.1808*'ana girdiler'!L5)+(0.8192*'ana girdiler'!L6)-1001)))/1000000)) -> 79.10228547 | E55: =((A55+B55)*0.5)/0.33 -> 300.3754565
B58: Birimler
B59: 1 oz | C59: 28.35 | D59: g
B60: 1 gal | C60: 3.785 | D60: litre
B61: 1 libre | C61: 0.4536 | D61: kg

Sheet kaynatma suyu hesabı (hidden)
A1: Lütfen Sarı alanları İhtiyaç Varsa Doldurunuz
A2: Yeşil Alanlar Sonuçtur
A4: ANA GİRDİLER | B4: Süre | C4: Birim
A5: Hedef Şıra | B5: =IF(('ana girdiler'!L3)=0,(amerikan!L3),('ana girdiler'!L3)) -> 12 | C5: litre
A6: Toplam Malt ve Tahıl | B6: =SUM(Program!H23)/1000 -> 3 | C6: kg
A7: Tahıl Dışı Katkılar | B7: =Program!G51/1000 -> 0.15 | C7: kg
A9: MAYŞELEME KADEMESİ | B9: Süre | C9: Birim | D9: Isı Kaynağının Kaynatma oranı litre/saat
A10: 44-59 derecede protein dinlenmesi | B10: =IF(('ana girdiler'!$L$3)=0,(amerikan!B10),('ana girdiler'!B10)) -> 0 | C10: dakika | D10: =IF(('ana girdiler'!$L$3)=0,(amerikan!B83),('ana girdiler'!B83)) -> 0.3
A11: ortalama 66 derecede mayşeleme | B11: =IF(('ana girdiler'!$L$3)=0,(amerikan!B5),('ana girdiler'!B5)) -> 60 | C11: dakika | D11: =IF(('ana girdiler'!$L$3)=0,(amerikan!B84),('ana girdiler'!B84)) -> 0.5 | E11: mayşeleme süresini ve kazanınızın saatte ne kadar su buharlaştırdığı bilgisini girin
A12: Kaynatma Süresi | B12: =IF(('ana girdiler'!$L$3)=0,(amerikan!B6),('ana girdiler'!B6)) -> 60 | C12: dakika | D12: =IF(('ana girdiler'!$L$3)=0,(amerikan!B85),('ana girdiler'!B85)) -> 3 | E12: mayşeleme süresini ve kazanınızın saatte ne kadar su buharlaştırdığı bilgisini girin
A15: TAHMİNİ KAYIPLAR ve ARTIŞLAR | B15: Süre | C15: Birim
A16: Tahmini Malt Tahıl Kaybı | B16: =B6 -> 3 | C16: litre | D16: ortalama malt ağırlığı kadardır
A17: Tahmini tahıl dışı katkı artışı | B17: =B7 -> 0.15 | C17: litre | D17: Mesela kaynatmada eklediğiniz candi şekerinin hacmi,bu artış yağmurlama suyunu etkiler
A18: Tahmini Mayşeleme Kaybı | B18: =(B11*D11)/60 -> 0.5 | C18: litre | D18: Tahmini mayşeleme sırasındaki kayıptır
A19: Tahmini Ölü yer kaybı | B19: =IF(('ana girdiler'!$L$3)=0,(amerikan!B86),('ana girdiler'!B86)) -> 0 | C19: litre | D19: bu alan ekipmanın dibinde kalan sıvıdır bunu elle girmeniz gerekir,mayşelemeden sonra sıvının hepsini kullanıyorsanız 0 kalabilir.
A20: Tahmini Kaynatma kaybı | B20: =(D12*B12)/60 -> 3 | C20: litre | D20: kaynatma nedeniyle buharlaşan sudur
A21: Tahmini çökelme kaybı | B21: =IF(('ana girdiler'!$L$3)=0,(amerikan!B87),('ana girdiler'!B87)) -> 0 | C21: litre | D21: özellikle mash-tun tekniğinde dipte çökelen maddelerdir bunu varsa elle girmeniz gerekir,BIAB yönteminde 0 olabilir.
A22: Tahmini Soğumada küçülme kaybı | B22: =0.04*B5 -> 0.48 | C22: litre | D22: soğumada suyun küçülme oranıdır
A25: SONUÇ | B25: Hacim | C25: Birim
A26: Protein Dinlenmesi | B26: =B5+B16 -> 15 | C26: litre | D26: protein dinlenmesi hacmidir
A27: Mayşeleme | B27: =B5+B16-((D10*B10)/60) -> 15 | C27: litre | D27: ilk başlangıçtaki mayşeleme suyu hacmidir
A28: Mayşelemeden sonraki hacim(mash-out) | B28: =B27-B18-B16 -> 11.5 | C28: litre | D28: Yağmurlamadan önceki hacimdir
A29: Yağmurlama (Sparge) | B29: =B30-B28-B17 -> 3.83 | C29: litre | D29: Yağmurlama hacmidir
A30: Tahmini kaynatma hacmi | B30: =B5+B19+B20+B21+B22 -> 15.48 | C30: litre | D30: Tahmini kaynatma hacmidir
A31: Toplam kullanılacak su miktarı | B31: =B29+B26 -> 18.83 | C31: litre | D31: Toplam Kullanılan Su hacmidir
A32: Minimum kaynatma kazanı hacmi | B32: =IF((B6+B26)>(B7+B30),(B6+B26),(B7+B30)) -> 18 | C32: litre | D32: Kaynatma kazanı hacmi kullanılacak malt miktarı ve başlangıçtaki mayşeleme suyu hacmi ile bulunur.
A35: Daha detaylı kaynatma suyu hesabı için
A36: www.birazbira.com/tam-tahil-biraciligi-icin-kaynatma-suyu-hesabi/
A37: sayfasını ziyaret edebilirsiniz

Sheet maya tablosu (hidden)
A1: Maya | B1: Maya Tipi | C1: Üretici | D1: Attenuation %
A2: Danstar American West Coast Yeast | B2: ale | C2: Danstar | D2: 72 | H2: Maya tablosu değerlerini Türkiye'deki tedarikçilerden veya
A3: Danstar Belle Saison Yeast | B3: ale | C3: Danstar | D3: 80 | H3: http://www.brewunited.com/yeast_database.php
A4: Danstar Diamond Lager | B4: lager | C4: Danstar | D4: 77 | H4: sitesinden alabilirsiniz.
A5: Danstar Munich Dry Wheat Yeast | B5: ale | C5: Danstar | D5: 75
A6: Danstar Nottingham | B6: ale | C6: Danstar | D6: 80
A7: Danstar BRY-97 Ale Bira Mayası | B7: ale | C7: Danstar | D7: 75
A8: Danstar Windsor | B8: ale | C8: Danstar | D8: 70
A9: Fermentis Safale K-97 | B9: ale | C9: Fermentis | D9: 81
A10: Fermentis Safale S-04 | B10: ale | C10: Fermentis | D10: 75
A11: Fermentis Safale US-05 | B11: ale | C11: Fermentis | D11: 81
A12: Fermentis Safbrew Abbaye BE-256 | B12: ale | C12: Fermentis | D12: 82
A13: Fermentis Safbrew F-2 | B13: ale | C13: Fermentis | D13: 80
A14: Fermentis Safbrew S-33 | B14: ale | C14: Fermentis | D14: 70
A15: Fermentis Safbrew T-58 | B15: ale | C15: Fermentis | D15: 70
A16: Fermentis Safbrew WB-06 | B16: ale | C16: Fermentis | D16: 86
A17: Fermentis Saflager S-189 | B17: lager | C17: Fermentis | D17: 84
A18: Fermentis Saflager S-23 | B18: lager | C18: Fermentis | D18: 82
A19: Fermentis Saflager W-34/70 | B19: lager | C19: Fermentis | D19: 83
A20: Fermentis Belgian Saison BE-134 | B20: ale | C20: Fermentis | D20: 90
A21: Mangrove Jack Bavarian Wheat Yeast M20 | B21: ale | C21: Mangrove Jack | D21: 73
A22: Mangrove Jack Bavarian Lager Yeast M76 | B22: lager | C22: Mangrove Jack | D22: 77
A23: Mangrove Jack Empire Ale M15 | B23: ale | C23: Mangrove Jack | D23: 75
A24: Mangrove Jack Empire Liberty Bell Ale M36 | B24: ale | C24: Mangrove Jack | D24: 76
A25: Mangrove Jack Belgian Ale Yeast M41 | B25: ale | C25: Mangrove Jack | D25: 78
A26: Mangrove Jack Belgian Abbey Ale Yeast M47 | B26: ale | C26: Mangrove Jack | D26: 78
A27: Mangrove Jack Belgian Trippel Ale Yeast M31 | B27: ale | C27: Mangrove Jack | D27: 82
A28: Mangrove Jack Belgian Witbier Yeast M21 | B28: ale | C28: Mangrove Jack | D28: 72
A29: Mangrove Jack French Saison Ale Yeast M29 | B29: ale | C29: Mangrove Jack | D29: 85
A30: Mangrove Jack Bohemian Lager Yeast M84 | B30: lager | C30: Mangrove Jack | D30: 78
A31: Mangrove Jack Californian Lager Yeast M54 | B31: lager | C31: Mangrove Jack | D31: 78
A32: Mangrove Jack British Ale Yeast | B32: ale | C32: Mangrove Jack | D32: 78
A33: Mangrove Jack Burton Union Yeast | B33: ale | C33: Mangrove Jack | D33: 78
A34: Mangrove Jack Newcastle Dark Ale Yeast | B34: ale | C34: Mangrove Jack | D34: 73
A35: Mangrove Jack UK Dark Ale Yeast | B35: ale | C35: Mangrove Jack | D35: 73
A36: Mangrove Jack UK New World Strong Ale Yeast M42 | B36: ale | C36: Mangrove Jack | D36: 78
A37: Mangrove Jack US West Coast Yeast Ale M44 | B37: ale | C37: Mangrove Jack | D37: 78
A38: Mangrove Jack Workhorse Beer Yeast M10 | B38: ale | C38: Mangrove Jack | D38: 78

Sheet tahıl tablosu (hidden)
A1: İsim | B1: Tip | C1: Renk (SRM) | D1: Lintern | E1: Tahmini Yoğunluk | F1: partide max %
A2: Amber Malt (muntons) | B2: Malt | C2: 22 | D2: 20 | E2: 1035 | F2: 20 | I2: Malt tablosu değerlerini Türkiye'deki tedarikçilerden veya
A3: Arpa Ezmesi | B3: Tahıl | C3: 1.7 | D3: 0 | E3: 1032 | F3: 20 | I3: http://www.brewunited.com/grain_database.php
A4: Arpa ham | B4: Tahıl | C4: 2 | D4: 0 | E4: 1028 | F4: 15 | I4: sitesinden alabilirsiniz.
A5: Arpa Kabuğu | B5: Tahıl | C5: 0 | D5: 0 | E5: 1000 | F5: 5
A6: Arpa,kavrulmuş | B6: Tahıl | C6: 300 | D6: 0 | E6: 1025 | F6: 10
A7: Buğday Ezmesi | B7: Tahıl | C7: 1.6 | D7: 0 | E7: 1035 | F7: 40
A8: Buğday maltı ,açık (weyermann) | B8: Malt | C8: 2.3 | D8: 130 | E8: 1040 | F8: 60
A9: Buğday, kavrulmuş | B9: Tahıl | C9: 425 | D9: 0 | E9: 1025 | F9: 10
A10: Cara aroma (weyermann) | B10: Malt | C10: 195 | D10: 0 | E10: 1035 | F10: 15
A11: Cara Münich II (weyermann) | B11: Malt | C11: 60 | D11: 0 | E11: 1036 | F11: 10
A12: Caraamber (weyermann) | B12: Malt | C12: 35 | D12: 0 | E12: 1035 | F12: 20
A13: CaraBohemian (weyermann) | B13: Malt | C13: 85 | D13: 0 | E13: 1034 | F13: 10
A14: Carafa I (weyermann) | B14: Malt | C14: 475 | D14: 0 | E14: 1036 | F14: 5
A15: Carahell (weyermann) | B15: Malt | C15: 12 | D15: 0 | E15: 1035 | F15: 15
A16: Caramalt (muntons) | B16: Malt | C16: 16 | D16: 0 | E16: 1035 | F16: 20
A17: Carapils (weyermann) | B17: Malt | C17: 2.5 | D17: 0 | E17: 1034 | F17: 10
A18: Carared (weyermann) | B18: Malt | C18: 22 | D18: 0 | E18: 1035 | F18: 25
A19: Çavdar Ezmesi | B19: Tahıl | C19: 2 | D19: 0 | E19: 1036 | F19: 10
A20: Çavdar maltı | B20: Malt | C20: 4.7 | D20: 75 | E20: 1029 | F20: 15
A21: Kayın isli maltı (weyermann) | B21: Malt | C21: 2.5 | D21: 0 | E21: 1037 | F21: 100
A22: Maris Otter (Muntons) | B22: Malt | C22: 2.3 | D22: 62 | E22: 1036 | F22: 100
A23: Melanoidin Malt (Weyermann) | B23: Malt | C23: 32 | D23: 0 | E23: 1037 | F23: 20
A24: Mısır Ezmesi | B24: Tahıl | C24: 1.3 | D24: 0 | E24: 1037 | F24: 40
A25: Munich I (Weyermann) | B25: Malt | C25: 7.1 | D25: 50 | E25: 1038 | F25: 100
A26: Munich II (weyermann) | B26: Malt | C26: 11 | D26: 0 | E26: 1036 | F26: 10
A27: Pale Ale Malt (weyermann) | B27: Malt | C27: 3.5 | D27: 85 | E27: 1036 | F27: 100
A28: Pilsner Malt (Weyermann) | B28: Malt | C28: 2 | D28: 110 | E28: 1038 | F28: 100
A29: Pirinç Ezmesi | B29: Tahıl | C29: 1 | D29: 0 | E29: 1032 | F29: 25
A30: Pirinç Kabuğu | B30: tahıl | C30: 0 | D30: 0 | E30: 1000 | F30: 5
A31: Propino Pale Ale (muntons) | B31: Malt | C31: 3.5 | D31: 85 | E31: 1036 | F31: 100
A32: Vienna Malt (Weyermann) | B32: Malt | C32: 3 | D32: 50 | E32: 1038 | F32: 100
A33: Yulaf Ezmesi | B33: Tahıl | C33: 1 | D33: 0 | E33: 1037 | F33: 30
A34: Yulaf maltı | B34: Tahıl | C34: 1 | D34: 0 | E34: 1037 | F34: 10

Sheet serbetçi otu tablosu (hidden)
A1: İsim | B1: Ülke | C1: Alfa Asit (%) | D1: Kullanım
A2: Amarillo | B2: Amerika | C2: 8.4 | D2: Aroma | H2: ŞOT tablosu değerlerini Türkiye'deki tedarikçilerden veya
A3: Cascade | B3: Amerika | C3: 6.9 | D3: Acılık ve Aroma | H3: http://www.brewunited.com/hop_database.php
A4: Centennial | B4: Amerika | C4: 10 | D4: Acılık | H4: sitesinden alabilirsiniz.
A5: Chinook | B5: Amerika | C5: 12 | D5: Acılık
A6: Citra | B6: Amerika | C6: 12.4 | D6: Aroma
A7: Columbus | B7: Amerika | C7: 12.4 | D7: Acılık
A8: El dorado | B8: Amerika | C8: 12.4 | D8: Acılık ve Aroma
A9: Equinox | B9: Belçika | C9: 16.4 | D9: Acılık ve Aroma
A10: Fuggle | B10: İngiltere | C10: 4.5 | D10: Aroma
A11: Golding | B11: İngiltere | C11: 6.2 | D11: Aroma
A12: Hersbrucker | B12: Almanya | C12: 3.1 | D12: Aroma
A13: Hüll Melon | B13: Almanya | C13: 7.2 | D13: Aroma
A14: Lemondrop | B14: Amerika | C14: 5.3 | D14: Aroma
A15: Lubelski | B15: Polonya | C15: 3.8 | D15: Aroma
A16: Magnum | B16: Almanya | C16: 14.3 | D16: Acılık
A17: Mandarina | B17: Almanya | C17: 9.3 | D17: Aroma
A18: Mittelfrueh | B18: Almanya | C18: 4.5 | D18: Aroma
A19: Mosaic | B19: Belçika | C19: 11.1 | D19: Acılık ve Aroma
A20: Nugget | B20: Amerika | C20: 12.3 | D20: Acılık
A21: Perle | B21: Almanya | C21: 7.3 | D21: Acılık
A22: Saaz | B22: Çekya | C22: 3.5 | D22: Aroma
A23: Simcoe | B23: Amerika | C23: 13.1 | D23: Acılık ve Aroma
A24: Spalter | B24: Almanya | C24: 5.5 | D24: Aroma
A25: Summit | B25: Belçika | C25: 18 | D25: Acılık
A26: Target | B26: İngiltere | C26: 10.7 | D26: Acılık
A27: Tettnang | B27: Almanya | C27: 4.2 | D27: Aroma
A28: Willamette | B28: Amerika | C28: 5.5 | D28: Aroma
A29: Zeus | B29: Amerika | C29: 14 | D29: Acılık

Sheet malt donusum (hidden)

Sheet sot donusum (hidden)

Sheet şeker ve katkılar (hidden)
A1: İsim | B1: Tip | C1: Renk (SRM) | D1: Tahmini Yoğunluk | E1: partide max %
A2: Akçağaç Şurubu | B2: Katkı | C2: 35 | D2: 1030 | E2: 10 | I2: Malt dışı katkı tablosu değerlerini Türkiye'deki tedarikçilerden veya
A3: Bal | B3: Katkı | C3: 1 | D3: 1035 | E3: 100 | I3: http://beersmith.com/grain-list/
A4: Candi Şekeri, açık | B4: Şeker | C4: 5 | D4: 1036 | E4: 20 | I4: sitesinden alabilirsiniz.
A5: Candi Şekeri, Dark | B5: Şeker | C5: 177 | D5: 1036 | E5: 20
A6: DME, ekstra Koyu | B6: DME | C6: 50 | D6: 1044 | E6: 100
A7: DME, ekstra açıık renk | B7: DME | C7: 3 | D7: 1044 | E7: 100
A8: DME, Koyu | B8: DME | C8: 30 | D8: 1044 | E8: 100
A9: DME, Orta | B9: DME | C9: 13 | D9: 1044 | E9: 100
A10: DME,açık renk | B10: DME | C10: 8 | D10: 1044 | E10: 100
A11: DME,Buğday | B11: DME | C11: 6 | D11: 1044 | E11: 100
A12: Esmer Şeker, Koyu | B12: Şeker | C12: 50 | D12: 1046 | E12: 10
A13: Esmer Şeker, Light | B13: Şeker | C13: 8 | D13: 1046 | E13: 10
A14: Evritik Şeker | B14: Şeker | C14: 0 | D14: 1046 | E14: 10
A15: Hububat,kırma | B15: Katkı | C15: 1 | D15: 1037 | E15: 10
A16: Kişniş Tohumu | B16: Katkı | C16: 0 | D16: 1000 | E16: 5
A17: LME, açık | B17: LME | C17: 6 | D17: 1036 | E17: 100
A18: LME, Amber | B18: LME | C18: 10 | D18: 1036 | E18: 100
A19: LME, Dark | B19: LME | C19: 25 | D19: 1036 | E19: 100
A20: LME,Buğday | B20: LME | C20: 8 | D20: 1036 | E20: 100
A21: LME,ekstra açık | B21: LME | C21: 3 | D21: 1036 | E21: 100
A22: LME,marris otter | B22: LME | C22: 6 | D22: 1036 | E22: 100
A23: Mısır Şekeri (Dekstroz) | B23: Şeker | C23: 0 | D23: 1046 | E23: 5
A24: Mısır Şurubu | B24: Şeker | C24: 1 | D24: 1036 | E24: 10
A25: Pancar Şekeri | B25: Şeker | C25: 0 | D25: 1046 | E25: 7
A26: Pekmez | B26: Şeker | C26: 80 | D26: 1036 | E26: 5
A27: Pirinç özü şurubu | B27: Katkı | C27: 7 | D27: 1032 | E27: 15
A28: Portakal Kabuğu Kurusu | B28: Katkı | C28: 0 | D28: 1005 | E28: 5
A29: Sofra Şekeri (sukroz) | B29: Şeker | C29: 1 | D29: 1046 | E29: 10
A30: Süt Şekeri (Lactose) | B30: Şeker | C30: 0 | D30: 1035 | E30: 10

Sheet utilisation chart (hidden)
A1: %U DEĞERİ
A2: Kaynatma | B2: OG
A3: Süre (dak.) | B3: 1030 | C3: 1040 | D3: 1050 | E3: 1060 | F3: 1070 | G3: 1080 | H3: 1090 | I3: 1100 | J3: 1110 | K3: 1120 | L3: 1130
A4: 0 | B4: 0 | C4: 0 | D4: 0 | E4: 0 | F4: 0 | G4: 0 | H4: 0 | I4: 0 | J4: 0 | K4: 0 | L4: 0
A5: 3 | B5: 0.034 | C5: 0.031 | D5: 0.029 | E5: 0.026 | F5: 0.024 | G5: 0.022 | H5: 0.02 | I5: 0.018 | J5: 0.017 | K5: 0.015 | L5: 0.014
A6: 6 | B6: 0.065 | C6: 0.059 | D6: 0.054 | E6: 0.049 | F6: 0.045 | G6: 0.041 | H6: 0.038 | I6: 0.035 | J6: 0.032 | K6: 0.029 | L6: 0.026
A7: 9 | B7: 0.092 | C7: 0.084 | D7: 0.077 | E7: 0.07 | F7: 0.064 | G7: 0.059 | H7: 0.054 | I7: 0.049 | J7: 0.045 | K7: 0.041 | L7: 0.037
A8: 12 | B8: 0.116 | C8: 0.106 | D8: 0.097 | E8: 0.088 | F8: 0.081 | G8: 0.074 | H8: 0.068 | I8: 0.062 | J8: 0.056 | K8: 0.052 | L8: 0.047
A9: 15 | B9: 0.137 | C9: 0.125 | D9: 0.114 | E9: 0.105 | F9: 0.096 | G9: 0.087 | H9: 0.08 | I9: 0.073 | J9: 0.067 | K9: 0.061 | L9: 0.056
A10: 18 | B10: 0.156 | C10: 0.142 | D10: 0.13 | E10: 0.119 | F10: 0.109 | G10: 0.099 | H10: 0.091 | I10: 0.083 | J10: 0.076 | K10: 0.069 | L10: 0.063
A11: 21 | B11: 0.173 | C11: 0.158 | D11: 0.144 | E11: 0.132 | F11: 0.12 | G11: 0.11 | H11: 0.101 | I11: 0.092 | J11: 0.084 | K11: 0.077 | L11: 0.07
A12: 24 | B12: 0.187 | C12: 0.171 | D12: 0.157 | E12: 0.143 | F12: 0.131 | G12: 0.12 | H12: 0.109 | I12: 0.1 | J12: 0.091 | K12: 0.083 | L12: 0.076
A13: 27 | B13: 0.201 | C13: 0.183 | D13: 0.168 | E13: 0.153 | F13: 0.14 | G13: 0.128 | H13: 0.117 | I13: 0.107 | J13: 0.098 | K13: 0.089 | L13: 0.082
A14: 30 | B14: 0.212 | C14: 0.194 | D14: 0.177 | E14: 0.162 | F14: 0.148 | G14: 0.135 | H14: 0.124 | I14: 0.113 | J14: 0.103 | K14: 0.094 | L14: 0.086
A15: 33 | B15: 0.223 | C15: 0.203 | D15: 0.186 | E15: 0.17 | F15: 0.155 | G15: 0.142 | H15: 0.13 | I15: 0.119 | J15: 0.108 | K15: 0.099 | L15: 0.091
A16: 36 | B16: 0.232 | C16: 0.212 | D16: 0.194 | E16: 0.177 | F16: 0.162 | G16: 0.148 | H16: 0.135 | I16: 0.124 | J16: 0.113 | K16: 0.103 | L16: 0.094
A17: 39 | B17: 0.24 | C17: 0.219 | D17: 0.2 | E17: 0.183 | F17: 0.167 | G17: 0.153 | H17: 0.14 | I17: 0.128 | J17: 0.117 | K17: 0.107 | L17: 0.098
A18: 42 | B18: 0.247 | C18: 0.226 | D18: 0.206 | E18: 0.189 | F18: 0.172 | G18: 0.158 | H18: 0.144 | I18: 0.132 | J18: 0.12 | K18: 0.11 | L18: 0.101
A19: 45 | B19: 0.253 | C19: 0.232 | D19: 0.212 | E19: 0.194 | F19: 0.177 | G19: 0.162 | H19: 0.148 | I19: 0.135 | J19: 0.123 | K19: 0.113 | L19: 0.103
A20: 48 | B20: 0.259 | C20: 0.237 | D20: 0.216 | E20: 0.198 | F20: 0.181 | G20: 0.165 | H20: 0.151 | I20: 0.138 | J20: 0.126 | K20: 0.115 | L20: 0.105
A21: 51 | B21: 0.264 | C21: 0.241 | D21: 0.221 | E21: 0.202 | F21: 0.184 | G21: 0.169 | H21: 0.154 | I21: 0.141 | J21: 0.129 | K21: 0.118 | L21: 0.108
A22: 54 | B22: 0.269 | C22: 0.246 | D22: 0.224 | E22: 0.205 | F22: 0.188 | G22: 0.171 | H22: 0.157 | I22: 0.143 | J22: 0.131 | K22: 0.12 | L22: 0.109
A23: 57 | B23: 0.273 | C23: 0.249 | D23: 0.228 | E23: 0.208 | F23: 0.19 | G23: 0.174 | H23: 0.159 | I23: 0.145 | J23: 0.133 | K23: 0.121 | L23: 0.111
A24: 60 | B24: 0.276 | C24: 0.252 | D24: 0.231 | E24: 0.211 | F24: 0.193 | G24: 0.176 | H24: 0.161 | I24: 0.147 | J24: 0.135 | K24: 0.123 | L24: 0.112
A25: 70 | B25: 0.285 | C25: 0.261 | D25: 0.238 | E25: 0.218 | F25: 0.199 | G25: 0.182 | H25: 0.166 | I25: 0.152 | J25: 0.139 | K25: 0.127 | L25: 0.116
A26: 80 | B26: 0.291 | C26: 0.266 | D26: 0.243 | E26: 0.222 | F26: 0.203 | G26: 0.186 | H26: 0.17 | I26: 0.155 | J26: 0.142 | K26: 0.13 | L26: 0.119
A27: 90 | B27: 0.295 | C27: 0.27 | D27: 0.247 | E27: 0.226 | F27: 0.206 | G27: 0.188 | H27: 0.172 | I27: 0.157 | J27: 0.144 | K27: 0.132 | L27: 0.12
A28: 120 | B28: 0.301 | C28: 0.275 | D28: 0.252 | E28: 0.23 | F28: 0.21 | G28: 0.192 | H28: 0.176 | I28: 0.161 | J28: 0.147 | K28: 0.134 | L28: 0.123
A33: Renk | B33: EBC | C33: R | D33: G | E33: B
B34: 4 | C34: 249 | D34: 247 | E34: 83
B35: 6 | C35: 246 | D35: 245 | E35: 19
B36: 8 | C36: 236 | D36: 230 | E36: 26
B37: 12 | C37: 213 | D37: 188 | E37: 38
B38: 16 | C38: 191 | D38: 146 | E38: 59
B39: 20 | C39: 191 | D39: 129 | E39: 59
B40: 26 | C40: 187 | D40: 103 | E40: 49
B41: 33 | C41: 141 | D41: 76 | E41: 50
B42: 39 | C42: 92 | D42: 52 | E42: 26
B43: 47 | C43: 83 | D43: 1 | E43: 3
B44: 57 | C44: 64 | D44: 0 | E44: 0
B45: 69 | C45: 46 | D45: 0 | E45: 0
B46: 79 | C46: 3 | D46: 4 | E46: 3
